Workbook

Sheet INGRESO DE DATOS
A12: 1. INGRESE LOS DATOS DEL PROPUESTO ASEGURADO:
C14: Nombre del Asegurado Principal : | D14: Nombre
D16: Número de Adultos: | G16: 2 | H16: Número de Hijos: | J16: 3
F18: Edad de Titular: | G18: 32 | H18: Edad de Cónyuge: | J18: 46
F20: Descuento: | G20: 0
A22: 2. INGRESE EL NOMBRE DE LA AGENCIA ASESORA:
C24: Intermediario: | D24: Agente / Agencia
A27: 3. ESCOJA EL PRODUCTO PARA VISUALIZAR LA COTIZACION RESPECTIVA:

Sheet Essential Care
A8: BUPA ESSENTIAL CARE | D8: Nombre del Asegurado: | E8: =+'INGRESO DE DATOS'!$D$14 -> Nombre
D10: Intermediario: | E10: =+'INGRESO DE DATOS'!$D$24 -> Agente / Agencia
D12: Fecha: | E12: =+TODAY() -> 2021-12-29 | G12: =IF('INGRESO DE DATOS'!G20>0,"Descuento","") ->  | H12: =IF('INGRESO DE DATOS'!G20>0,'INGRESO DE DATOS'!G20,"") -> 
E14: Numero de Adultos: | F14: =+'INGRESO DE DATOS'!G16 -> 2 | H14: Edad de Titular: | I14: =+'INGRESO DE DATOS'!$G$18 -> 32
E16: Numero de Hijos: | F16: =+'INGRESO DE DATOS'!$J$16 -> 3 | H16: Edad de Conyuge: | I16: =+'INGRESO DE DATOS'!$J$18 -> 46
G19: TRUE
D20: Deducibles | F20: PLAN 1 | G20: PLAN 2 | H20: PLAN 3 | I20: PLAN 4
D21: Dentro del pais de residencia | F21: 0 | G21: 0 | H21: 500 | I21: 2000
D22: Fuera del pais de residencia | F22: 1000 | G22: 3000 | H22: 2000 | I22: 5000
D24: Tarifas Anuales
D25: Prima Titular | F25: =VLOOKUP($I$14,Tablas!$A$6:$H$29,4,TRUE) -> 1884 | G25: =VLOOKUP($I$14,Tablas!$A$6:$H$29,5,TRUE) -> 1711 | H25: =VLOOKUP($I$14,Tablas!$A$6:$H$29,6,TRUE) -> 1555 | I25: =VLOOKUP($I$14,Tablas!$A$6:$H$29,7,TRUE) -> 1341
D26: Prima Cónyuge | F26: =IF($F$14=1,0,(VLOOKUP($I$16,Tablas!$A$6:$H$29,4,TRUE))) -> 2981 | G26: =IF($F$14=1,0,(VLOOKUP($I$16,Tablas!$A$6:$H$29,5,TRUE))) -> 2707 | H26: =IF($F$14=1,0,(VLOOKUP($I$16,Tablas!$A$6:$H$29,6,TRUE))) -> 2460 | I26: =IF($F$14=1,0,(VLOOKUP($I$16,Tablas!$A$6:$H$29,7,TRUE))) -> 2120
D27: Primas Hijos | F27: =IF($F$16=0,0,(VLOOKUP($F$16,Tablas!$A$30:$H$32,4,TRUE))) -> 1182 | G27: =IF($F$16=0,0,(VLOOKUP($F$16,Tablas!$A$30:$H$32,5,TRUE))) -> 1074 | H27: =IF($F$16=0,0,(VLOOKUP($F$16,Tablas!$A$30:$H$32,6,TRUE))) -> 976 | I27: =IF($F$16=0,0,(VLOOKUP($F$16,Tablas!$A$30:$H$32,7,TRUE))) -> 841
D28: PRIMA NETA | F28: =SUM(F25:F27) -> 6047 | G28: =SUM(G25:G27) -> 5492 | H28: =SUM(H25:H27) -> 4991 | I28: =SUM(I25:I27) -> 4302
D29: =IF('INGRESO DE DATOS'!G20>0,"Descuento","") ->  | F29: =IF('INGRESO DE DATOS'!$G$20>0,-(F25+F26+F27)*'INGRESO DE DATOS'!$G$20,0) -> 0 | G29: =IF('INGRESO DE DATOS'!$G$20>0,-(G25+G26+G27)*'INGRESO DE DATOS'!$G$20,0) -> 0 | H29: =IF('INGRESO DE DATOS'!$G$20>0,-(H25+H26+H27)*'INGRESO DE DATOS'!$G$20,0) -> 0 | I29: =IF('INGRESO DE DATOS'!$G$20>0,-(I25+I26+I27)*'INGRESO DE DATOS'!$G$20,0) -> 0
D30: Costo Administrativo Anual | F30: 75 | G30: 75 | H30: 75 | I30: 75
D31: IVA (12%) | F31: =+(F28+F29+F30)*0% -> 0 | G31: =+(G28+G29+G30)*0% -> 0 | H31: 0 | I31: 0
D32: TOTAL | F32: =SUM(F28:F31) -> 6122 | G32: =SUM(G28:G31) -> 5567 | H32: 5066 | I32: 4377
D34: Tarifas Semestrales
D35: Prima Titular | F35: =VLOOKUP($I$14,Tablas!$A$39:$H$62,4,TRUE) -> 998.52 | G35: =VLOOKUP($I$14,Tablas!$A$39:$H$62,5,TRUE) -> 906.83 | H35: =VLOOKUP($I$14,Tablas!$A$39:$H$62,6,TRUE) -> 824.15 | I35: =VLOOKUP($I$14,Tablas!$A$39:$H$62,7,TRUE) -> 710.73
D36: Prima Cónyuge | F36: =IF($F$14=1,0,(VLOOKUP($I$16,Tablas!$A$39:$H$62,4,TRUE))) -> 1579.93 | G36: =IF($F$14=1,0,(VLOOKUP($I$16,Tablas!$A$39:$H$62,5,TRUE))) -> 1434.71 | H36: =IF($F$14=1,0,(VLOOKUP($I$16,Tablas!$A$39:$H$62,6,TRUE))) -> 1303.8 | I36: =IF($F$14=1,0,(VLOOKUP($I$16,Tablas!$A$39:$H$62,7,TRUE))) -> 1123.6
D37: Primas Hijos | F37: =IF($F$16=0,0,(VLOOKUP($F$16,Tablas!$A$63:$H$65,4,TRUE))) -> 626.46 | G37: =IF($F$16=0,0,(VLOOKUP($F$16,Tablas!$A$63:$H$65,5,TRUE))) -> 569.22 | H37: =IF($F$16=0,0,(VLOOKUP($F$16,Tablas!$A$63:$H$65,6,TRUE))) -> 517.28 | I37: =IF($F$16=0,0,(VLOOKUP($F$16,Tablas!$A$63:$H$65,7,TRUE))) -> 445.73
D38: PRIMA NETA | F38: =SUM(F35:F37) -> 3204.91 | G38: =SUM(G35:G37) -> 2910.76 | H38: =SUM(H35:H37) -> 2645.23 | I38: =SUM(I35:I37) -> 2280.06
D39: =IF('INGRESO DE DATOS'!G20>0,"Descuento","") ->  | F39: =IF('INGRESO DE DATOS'!$G$20>0,-(F35+F36+F37)*'INGRESO DE DATOS'!$G$20,0) -> 0 | G39: =IF('INGRESO DE DATOS'!$G$20>0,-(G35+G36+G37)*'INGRESO DE DATOS'!$G$20,0) -> 0 | H39: =IF('INGRESO DE DATOS'!$G$20>0,-(H35+H36+H37)*'INGRESO DE DATOS'!$G$20,0) -> 0 | I39: =IF('INGRESO DE DATOS'!$G$20>0,-(I35+I36+I37)*'INGRESO DE DATOS'!$G$20,0) -> 0
D40: Costo Administrativo Anual | F40: 75 | G40: 75 | H40: 75 | I40: 75
D41: IVA (12%) | F41: =+(F38+F39+F40)*0% -> 0 | G41: =+(G38+G39+G40)*0% -> 0 | H41: 0 | I41: 0
D42: 1ra Cuota | F42: =SUM(F38:F41) -> 3279.91 | G42: =SUM(G38:G41) -> 2985.76 | H42: =SUM(H38:H41) -> 2720.23 | I42: =SUM(I38:I41) -> 2355.06
D43: 2da Cuota | F43: =F38+F39+F41 -> 3204.91 | G43: =G38+G39+G41 -> 2910.76 | H43: 2645.23 | I43: 2280.06
D44: TOTAL | F44: =F42+F43 -> 6484.82 | G44: =G42+G43 -> 5896.52 | H44: 5365.46 | I44: 4635.12
D46: Tarifas Semestrales
D47: Prima Titular | F47: =VLOOKUP($I$14,Tablas!$A$923:$H$946,4,TRUE) -> 518.1 | G47: =VLOOKUP($I$14,Tablas!$A$923:$H$946,5,TRUE) -> 470.525 | H47: =VLOOKUP($I$14,Tablas!$A$923:$H$946,6,TRUE) -> 427.625 | I47: =VLOOKUP($I$14,Tablas!$A$923:$H$946,7,TRUE) -> 368.775
D48: Prima Cónyuge | F48: =IF($F$14=1,0,(VLOOKUP($I$16,Tablas!$A$923:$H$946,4,TRUE))) -> 819.775 | G48: =IF($F$14=1,0,(VLOOKUP($I$16,Tablas!$A$923:$H$946,5,TRUE))) -> 744.425 | H48: =IF($F$14=1,0,(VLOOKUP($I$16,Tablas!$A$923:$H$946,6,TRUE))) -> 676.5 | I48: =IF($F$14=1,0,(VLOOKUP($I$16,Tablas!$A$923:$H$946,7,TRUE))) -> 583
D49: Primas Hijos | F49: =IF($F$16=0,0,(VLOOKUP($F$16,Tablas!$A$947:$H$949,4,TRUE))) -> 325.05 | G49: =IF($F$16=0,0,(VLOOKUP($F$16,Tablas!$A$947:$H$949,5,TRUE))) -> 295.35 | H49: =IF($F$16=0,0,(VLOOKUP($F$16,Tablas!$A$947:$H$949,6,TRUE))) -> 268.4 | I49: =IF($F$16=0,0,(VLOOKUP($F$16,Tablas!$A$947:$H$949,7,TRUE))) -> 231.275
D50: PRIMA NETA | F50: =SUM(F47:F49) -> 1662.925 | G50: =SUM(G47:G49) -> 1510.3 | H50: =SUM(H47:H49) -> 1372.525 | I50: =SUM(I47:I49) -> 1183.05
D51: =IF('INGRESO DE DATOS'!G32>0,"Descuento","") ->  | F51: =IF('INGRESO DE DATOS'!$G$20>0,-(F47+F48+F49)*'INGRESO DE DATOS'!$G$20,0) -> 0 | G51: =IF('INGRESO DE DATOS'!$G$20>0,-(G47+G48+G49)*'INGRESO DE DATOS'!$G$20,0) -> 0 | H51: =IF('INGRESO DE DATOS'!$G$20>0,-(H47+H48+H49)*'INGRESO DE DATOS'!$G$20,0) -> 0 | I51: =IF('INGRESO DE DATOS'!$G$20>0,-(I47+I48+I49)*'INGRESO DE DATOS'!$G$20,0) -> 0
D52: Costo Administrativo Anual | F52: 75 | G52: 75 | H52: 75 | I52: 75
D53: IVA (12%) | F53: =+(F50+F51+F52)*0% -> 0 | G53: =+(G50+G51+G52)*0% -> 0 | H53: 0 | I53: 0
D54: 1ra Cuota | F54: =SUM(F50:F53) -> 1737.925 | G54: =SUM(G50:G53) -> 1585.3 | H54: =SUM(H50:H53) -> 1447.525 | I54: =SUM(I50:I53) -> 1258.05
D55: 2da a 4ta Cuota | F55: =F50+F51+F53 -> 1662.925 | G55: =G50+G51+G53 -> 1510.3 | H55: 1372.525 | I55: 1183.05
D56: TOTAL | F56: =F54+F55*3 -> 6726.7 | G56: =G54+G55*3 -> 6116.2 | H56: 5565.1 | I56: 4807.2
D58: Tarifas Mensuales
D59: Prima Titular | F59: =VLOOKUP($I$14,Tablas!$A$1215:$H$1243,4,TRUE) -> 175.8399994 | G59: =VLOOKUP($I$14,Tablas!$A$1215:$H$1243,5,TRUE) -> 159.6933328 | H59: =VLOOKUP($I$14,Tablas!$A$1215:$H$1243,6,TRUE) -> 145.1333328 | I59: =VLOOKUP($I$14,Tablas!$A$1215:$H$1243,7,TRUE) -> 125.1599996
D60: Prima Cónyuge | F60: =IF($F$14=1,0,(VLOOKUP($I$16,Tablas!$A$1215:$H$1243,4,TRUE))) -> 278.2266657 | G60: =IF($F$14=1,0,(VLOOKUP($I$16,Tablas!$A$1215:$H$1243,5,TRUE))) -> 252.6533324 | H60: =IF($F$14=1,0,(VLOOKUP($I$16,Tablas!$A$1215:$H$1243,6,TRUE))) -> 229.5999992 | I60: =IF($F$14=1,0,(VLOOKUP($I$16,Tablas!$A$1215:$H$1243,7,TRUE))) -> 197.866666
D61: Primas Hijos | F61: =IF($F$16=0,0,(VLOOKUP($F$16,Tablas!$A$1239:$H$1241,4,TRUE))) -> 110.3199996 | G61: =IF($F$16=0,0,(VLOOKUP($F$16,Tablas!$A$1239:$H$1241,5,TRUE))) -> 100.2399996 | H61: =IF($F$16=0,0,(VLOOKUP($F$16,Tablas!$A$1239:$H$1241,6,TRUE))) -> 91.09333301 | I61: =IF($F$16=0,0,(VLOOKUP($F$16,Tablas!$A$1239:$H$1241,7,TRUE))) -> 78.49333305
D62: PRIMA NETA | F62: =SUM(F59:F61) -> 564.3866647 | G62: =SUM(G59:G61) -> 512.5866648 | H62: =SUM(H59:H61) -> 465.826665 | I62: =SUM(I59:I61) -> 401.5199986
F63: 0 | G63: 0 | H63: 0 | I63: 0
D64: Costo Administrativo Anual | F64: 75 | G64: 75 | H64: 75 | I64: 75
D65: IVA (12%) | F65: =+(F62+F63+F64)*0% -> 0 | G65: =+(G62+G63+G64)*0% -> 0 | H65: 0 | I65: 0
D66: 1ra Cuota | F66: =SUM(F62:F65) -> 639.3866647 | G66: =SUM(G62:G65) -> 587.5866648 | H66: =SUM(H62:H65) -> 540.826665 | I66: =SUM(I62:I65) -> 476.5199986
D67: 2da a 12va Cuota | F67: =F62+F63+F65 -> 564.3866647 | G67: =G62+G63+G65 -> 512.5866648 | H67: 465.826665 | I67: 401.5199986
D68: TOTAL | F68: =F66+F67*11 -> 6847.639976 | G68: =G66+G67*11 -> 6226.039978 | H68: 5664.91998 | I68: 4893.239983
D70: Tarifas en US $ - Válidas desde 01 Ene 2022
D71: Este presupuesto solamente tiene carácter informativo y en ningún momento expresa compromiso legal para suministrarle cobertura de seguro. La emisión de una póliza de seguro Bupa está sujeta a todas las evaluaciones de riesgo por parte de Bupa y a la recepción de todos los pagos de prima requeridos.

Sheet Unique Care
A7: BUPA UNIQUE CARE | D7: Nombre del Asegurado: | E7: =+'INGRESO DE DATOS'!$D$14 -> Nombre
D9: Intermediario: | E9: =+'INGRESO DE DATOS'!$D$24 -> Agente / Agencia
D11: Fecha: | E11: =+TODAY() -> 2021-12-29 | G11: =IF('INGRESO DE DATOS'!G20>0,"Descuento","") ->  | H11: =IF('INGRESO DE DATOS'!G20>0,'INGRESO DE DATOS'!G20,"") -> 
F13: Numero de Adultos: | G13: =+'INGRESO DE DATOS'!$G$16 -> 2 | I13: Edad de Titular: | J13: =+'INGRESO DE DATOS'!$G$18 -> 32
F15: Numero de Hijos: | G15: =+'INGRESO DE DATOS'!$J$16 -> 3 | I15: Edad de Conyuge: | J15: =+'INGRESO DE DATOS'!$J$18 -> 46
F17: Coberturas / Anexos Adicionales: | H17: Complicaciones de Maternidad (+ $500,000)
F18: TRUE
F19: TRUE | H19: Trasplante de Órganos (+ $500,000)
F20: TRUE
H21: Eliminación de Deducible
D23: Deducibles | F23: PLAN 1 | G23: PLAN 2 | H23: PLAN 3 | I23: PLAN 4 | J23: PLAN 5
D24: Dentro del pais de residencia | F24: 250 | G24: 1000 | H24: 2000 | I24: 5000 | J24: 10000
D25: Fuera del pais de residencia | F25: 1000 | G25: 2000 | H25: 3000 | I25: 5000 | J25: 10000
D27: Tarifas Anuales
D28: Prima Titular | F28: =VLOOKUP($J$13,Tablas!$A$274:$H$336,4,TRUE) -> 3253 | G28: =VLOOKUP($J$13,Tablas!$A$274:$H$336,5,TRUE) -> 2478 | H28: =VLOOKUP($J$13,Tablas!$A$274:$H$336,6,TRUE) -> 2045 | I28: =VLOOKUP($J$13,Tablas!$A$274:$H$336,7,TRUE) -> 1763 | J28: =VLOOKUP($J$13,Tablas!$A$274:$H$336,8,TRUE) -> 1425
D29: Prima Cónyuge | F29: =IF($G$13=1,0,(VLOOKUP($J$15,Tablas!$A$274:$H$336,4,TRUE))) -> 4867 | G29: =IF($G$13=1,0,(VLOOKUP($J$15,Tablas!$A$274:$H$336,5,TRUE))) -> 3648 | H29: =IF($G$13=1,0,(VLOOKUP($J$15,Tablas!$A$274:$H$336,6,TRUE))) -> 3149 | I29: =IF($G$13=1,0,(VLOOKUP($J$15,Tablas!$A$274:$H$336,7,TRUE))) -> 2659 | J29: =IF($G$13=1,0,(VLOOKUP($J$15,Tablas!$A$274:$H$336,8,TRUE))) -> 2145
D30: Primas Hijos | F30: =IF($G$15=0,0,(VLOOKUP($G$15,Tablas!$A$337:$H$339,4,TRUE))) -> 2881 | G30: =IF($G$15=0,0,(VLOOKUP($G$15,Tablas!$A$337:$H$339,5,TRUE))) -> 2432 | H30: =IF($G$15=0,0,(VLOOKUP($G$15,Tablas!$A$337:$H$339,6,TRUE))) -> 1296 | I30: =IF($G$15=0,0,(VLOOKUP($G$15,Tablas!$A$337:$H$339,7,TRUE))) -> 1239 | J30: =IF($G$15=0,0,(VLOOKUP($G$15,Tablas!$A$337:$H$339,8,TRUE))) -> 1042
D31: Anexo: Complicaciones de Maternidad | F31: =+IF($F$18=FALSE,0,Tablas!D$340) -> 0 | G31: =+IF($F$18=FALSE,0,Tablas!E$340) -> 0 | H31: =+IF($F$18=FALSE,0,Tablas!F$340) -> 0 | I31: =+IF($F$18=FALSE,0,Tablas!G$340) -> 225 | J31: =+IF($F$18=FALSE,0,Tablas!H$340) -> 225
D32: Anexo: Trasplante Organos | F32: =IF($F$19=FALSE,0,Tablas!D$341) -> 300 | G32: =IF($F$19=FALSE,0,Tablas!E$341) -> 300 | H32: =IF($F$19=FALSE,0,Tablas!F$341) -> 300 | I32: =IF($F$19=FALSE,0,Tablas!G$341) -> 300 | J32: =IF($F$19=FALSE,0,Tablas!H$341) -> 300
D33: Anexo: Eliminacion de Deducible | F33: =IF($F$20=FALSE,0,Tablas!D$342) -> 45 | G33: =IF($F$20=FALSE,0,Tablas!E$342) -> 180 | H33: =IF($F$20=FALSE,0,Tablas!F$342) -> 345 | I33: =IF($F$20=FALSE,0,Tablas!G$342) -> 775 | J33: =IF($F$20=FALSE,0,Tablas!H$342) -> 1330
D34: PRIMA NETA | F34: =SUM(F28:F33) -> 11346 | G34: =SUM(G28:G33) -> 9038 | H34: 7135 | I34: 6961 | J34: 6467
D35: =IF('INGRESO DE DATOS'!G20>0,"Descuento","") ->  | F35: =IF('INGRESO DE DATOS'!$G$20>0,-(F28+F29+F30)*'INGRESO DE DATOS'!$G$20,0) -> 0 | G35: =IF('INGRESO DE DATOS'!$G$20>0,-(G28+G29+G30)*'INGRESO DE DATOS'!$G$20,0) -> 0 | H35: =IF('INGRESO DE DATOS'!$G$20>0,-(H28+H29+H30)*'INGRESO DE DATOS'!$G$20,0) -> 0 | I35: =IF('INGRESO DE DATOS'!$G$20>0,-(I28+I29+I30)*'INGRESO DE DATOS'!$G$20,0) -> 0 | J35: =IF('INGRESO DE DATOS'!$G$20>0,-(J28+J29+J30)*'INGRESO DE DATOS'!$G$20,0) -> 0
D36: Costo Administrativo Anual | F36: 75 | G36: 75 | H36: 75 | I36: 75 | J36: 75
D37: IVA (12%) | F37: =+(F34+F35+F36)*0% -> 0 | G37: =+(G34+G35+G36)*0% -> 0 | H37: 0 | I37: 0 | J37: 0
D38: TOTAL | F38: =SUM(F34:F37) -> 11421 | G38: =SUM(G34:G37) -> 9113 | H38: =SUM(H34:H37) -> 7210 | I38: =SUM(I34:I37) -> 7036 | J38: =SUM(J34:J37) -> 6542
D40: Tarifas Semestrales
D41: Prima Titular | F41: =VLOOKUP($J$13,Tablas!$A$346:$H$408,4,TRUE) -> 1724.09 | G41: =VLOOKUP($J$13,Tablas!$A$346:$H$408,5,TRUE) -> 1313.34 | H41: =VLOOKUP($J$13,Tablas!$A$346:$H$408,6,TRUE) -> 1083.85 | I41: =VLOOKUP($J$13,Tablas!$A$346:$H$408,7,TRUE) -> 934.39 | J41: =VLOOKUP($J$13,Tablas!$A$346:$H$408,8,TRUE) -> 755.25
D42: Prima Cónyuge | F42: =IF($G$13=1,0,(VLOOKUP($J$15,Tablas!$A$346:$H$408,4,TRUE))) -> 2579.51 | G42: =IF($G$13=1,0,(VLOOKUP($J$15,Tablas!$A$346:$H$408,5,TRUE))) -> 1933.44 | H42: =IF($G$13=1,0,(VLOOKUP($J$15,Tablas!$A$346:$H$408,6,TRUE))) -> 1668.97 | I42: =IF($G$13=1,0,(VLOOKUP($J$15,Tablas!$A$346:$H$408,7,TRUE))) -> 1409.27 | J42: =IF($G$13=1,0,(VLOOKUP($J$15,Tablas!$A$346:$H$408,8,TRUE))) -> 1136.85
D43: Primas Hijos | F43: =IF($G$15=0,0,(VLOOKUP($G$15,Tablas!$A$409:$H$411,4,TRUE))) -> 1526.93 | G43: =IF($G$15=0,0,(VLOOKUP($G$15,Tablas!$A$409:$H$411,5,TRUE))) -> 1288.96 | H43: =IF($G$15=0,0,(VLOOKUP($G$15,Tablas!$A$409:$H$411,6,TRUE))) -> 686.88 | I43: =IF($G$15=0,0,(VLOOKUP($G$15,Tablas!$A$409:$H$411,7,TRUE))) -> 656.67 | J43: =IF($G$15=0,0,(VLOOKUP($G$15,Tablas!$A$409:$H$411,8,TRUE))) -> 552.26
D44: Anexo: Complicaciones de Maternidad | F44: =+IF($F$18=FALSE,0,Tablas!D$412) -> 0 | G44: =+IF($F$18=FALSE,0,Tablas!E$412) -> 0 | H44: =+IF($F$18=FALSE,0,Tablas!F$412) -> 0 | I44: =+IF($F$18=FALSE,0,Tablas!G$412) -> 119.25 | J44: =+IF($F$18=FALSE,0,Tablas!H$412) -> 119.25
D45: Anexo: Trasplante Organos | F45: =IF($F$19=FALSE,0,Tablas!D$413) -> 159 | G45: =IF($F$19=FALSE,0,Tablas!E$413) -> 159 | H45: =IF($F$19=FALSE,0,Tablas!F$413) -> 159 | I45: =IF($F$19=FALSE,0,Tablas!G$413) -> 159 | J45: =IF($F$19=FALSE,0,Tablas!H$413) -> 159
D46: Anexo: Eliminacion de Deducible | F46: =IF($F$20=FALSE,0,Tablas!D$414) -> 23.85 | G46: =IF($F$20=FALSE,0,Tablas!E$414) -> 95.4 | H46: =IF($F$20=FALSE,0,Tablas!F$414) -> 182.85 | I46: =IF($F$20=FALSE,0,Tablas!G$414) -> 410.75 | J46: =IF($F$20=FALSE,0,Tablas!H$414) -> 704.9
D47: PRIMA NETA | F47: =SUM(F41:F46) -> 6013.38 | G47: =SUM(G41:G46) -> 4790.14 | H47: 3781.55 | I47: 3689.33 | J47: 3427.51
D48: =IF('INGRESO DE DATOS'!G20>0,"Descuento","") ->  | F48: =IF('INGRESO DE DATOS'!$G$20>0,-(F41+F42+F43)*'INGRESO DE DATOS'!$G$20,0) -> 0 | G48: =IF('INGRESO DE DATOS'!$G$20>0,-(G41+G42+G43)*'INGRESO DE DATOS'!$G$20,0) -> 0 | H48: =IF('INGRESO DE DATOS'!$G$20>0,-(H41+H42+H43)*'INGRESO DE DATOS'!$G$20,0) -> 0 | I48: =IF('INGRESO DE DATOS'!$G$20>0,-(I41+I42+I43)*'INGRESO DE DATOS'!$G$20,0) -> 0 | J48: =IF('INGRESO DE DATOS'!$G$20>0,-(J41+J42+J43)*'INGRESO DE DATOS'!$G$20,0) -> 0
D49: Costo Administrativo Anual | F49: 75 | G49: 75 | H49: 75 | I49: 75 | J49: 75
D50: IVA (12%) | F50: =+(F47+F48+F49)*0% -> 0 | G50: =+(G47+G48+G49)*0% -> 0 | H50: 0 | I50: 0 | J50: 0
D51: 1ra Cuota | F51: =SUM(F47:F50) -> 6088.38 | G51: =SUM(G47:G50) -> 4865.14 | H51: =SUM(H47:H50) -> 3856.55 | I51: =SUM(I47:I50) -> 3764.33 | J51: =SUM(J47:J50) -> 3502.51
D52: 2da Cuota | F52: =F47+F48+F50 -> 6013.38 | G52: =G47+G48+G50 -> 4790.14 | H52: 3781.55 | I52: 3689.33 | J52: 3427.51
D53: TOTAL | F53: =F51+F52 -> 12101.76 | G53: =G51+G52 -> 9655.28 | H53: 7638.1 | I53: 7453.66 | J53: 6930.02
D55: Tarifas Trimestrales
D56: Prima Titular | F56: =VLOOKUP($J$13,Tablas!$A$991:$H$1053,4,TRUE) -> 894.575 | G56: =VLOOKUP($J$13,Tablas!$A$991:$H$1053,5,TRUE) -> 681.45 | H56: =VLOOKUP($J$13,Tablas!$A$991:$H$1053,6,TRUE) -> 562.375 | I56: =VLOOKUP($J$13,Tablas!$A$991:$H$1053,7,TRUE) -> 484.825 | J56: =VLOOKUP($J$13,Tablas!$A$991:$H$1053,8,TRUE) -> 391.875
D57: Prima Cónyuge | F57: =IF($G$13=1,0,(VLOOKUP($J$15,Tablas!$A$991:$H$1053,4,TRUE))) -> 1338.425 | G57: =IF($G$13=1,0,(VLOOKUP($J$15,Tablas!$A$991:$H$1053,5,TRUE))) -> 1003.2 | H57: =IF($G$13=1,0,(VLOOKUP($J$15,Tablas!$A$991:$H$1053,6,TRUE))) -> 865.975 | I57: =IF($G$13=1,0,(VLOOKUP($J$15,Tablas!$A$991:$H$1053,7,TRUE))) -> 731.225 | J57: =IF($G$13=1,0,(VLOOKUP($J$15,Tablas!$A$991:$H$1053,8,TRUE))) -> 589.875
D58: Primas Hijos | F58: =IF($G$15=0,0,(VLOOKUP($G$15,Tablas!$A$1054:$H$1056,4,TRUE))) -> 792.275 | G58: =IF($G$15=0,0,(VLOOKUP($G$15,Tablas!$A$1054:$H$1056,5,TRUE))) -> 668.8 | H58: =IF($G$15=0,0,(VLOOKUP($G$15,Tablas!$A$1054:$H$1056,6,TRUE))) -> 356.4 | I58: =IF($G$15=0,0,(VLOOKUP($G$15,Tablas!$A$1054:$H$1056,7,TRUE))) -> 340.725 | J58: =IF($G$15=0,0,(VLOOKUP($G$15,Tablas!$A$1054:$H$1056,8,TRUE))) -> 286.55
D59: Anexo: Complicaciones de Maternidad | F59: =+IF($F$18=FALSE,0,Tablas!D$1057) -> 0 | G59: =+IF($F$18=FALSE,0,Tablas!E$1057) -> 0 | H59: =+IF($F$18=FALSE,0,Tablas!F$1057) -> 0 | I59: =+IF($F$18=FALSE,0,Tablas!G$1057) -> 61.875 | J59: =+IF($F$18=FALSE,0,Tablas!H$1057) -> 61.875
D60: Anexo: Trasplante Organos | F60: =IF($F$19=FALSE,0,Tablas!D$1058) -> 82.5 | G60: =IF($F$19=FALSE,0,Tablas!E$1058) -> 82.5 | H60: =IF($F$19=FALSE,0,Tablas!F$1058) -> 82.5 | I60: =IF($F$19=FALSE,0,Tablas!G$1058) -> 82.5 | J60: =IF($F$19=FALSE,0,Tablas!H$1058) -> 82.5
D61: Anexo: Eliminacion de Deducible | F61: =IF($F$20=FALSE,0,Tablas!D$1059) -> 12.375 | G61: =IF($F$20=FALSE,0,Tablas!E$1059) -> 49.5 | H61: =IF($F$20=FALSE,0,Tablas!F$1059) -> 94.875 | I61: =IF($F$20=FALSE,0,Tablas!G$1059) -> 213.125 | J61: =IF($F$20=FALSE,0,Tablas!H$1059) -> 365.75
D62: PRIMA NETA | F62: =SUM(F56:F61) -> 3120.15 | G62: =SUM(G56:G61) -> 2485.45 | H62: 1962.125 | I62: 1914.275 | J62: 1778.425
D63: =IF('INGRESO DE DATOS'!G34>0,"Descuento","") ->  | F63: =IF('INGRESO DE DATOS'!$G$20>0,-(F56+F57+F58)*'INGRESO DE DATOS'!$G$20,0) -> 0 | G63: =IF('INGRESO DE DATOS'!$G$20>0,-(G56+G57+G58)*'INGRESO DE DATOS'!$G$20,0) -> 0 | H63: =IF('INGRESO DE DATOS'!$G$20>0,-(H56+H57+H58)*'INGRESO DE DATOS'!$G$20,0) -> 0 | I63: =IF('INGRESO DE DATOS'!$G$20>0,-(I56+I57+I58)*'INGRESO DE DATOS'!$G$20,0) -> 0 | J63: =IF('INGRESO DE DATOS'!$G$20>0,-(J56+J57+J58)*'INGRESO DE DATOS'!$G$20,0) -> 0
D64: Costo Administrativo Anual | F64: 75 | G64: 75 | H64: 75 | I64: 75 | J64: 75
D65: IVA (12%) | F65: =+(F62+F63+F64)*0% -> 0 | G65: =+(G62+G63+G64)*0% -> 0 | H65: 0 | I65: 0 | J65: 0
D66: 1ra Cuota | F66: =SUM(F62:F65) -> 3195.15 | G66: =SUM(G62:G65) -> 2560.45 | H66: =SUM(H62:H65) -> 2037.125 | I66: =SUM(I62:I65) -> 1989.275 | J66: =SUM(J62:J65) -> 1853.425
D67: 2da a 4ta Cuota | F67: =F62+F63+F65 -> 3120.15 | G67: =G62+G63+G65 -> 2485.45 | H67: 1962.125 | I67: 1914.275 | J67: 1778.425
D68: TOTAL | F68: =F66+F67*3 -> 12555.6 | G68: =G66+G67*3 -> 10016.8 | H68: 7923.5 | I68: 7732.1 | J68: 7188.7
D70: Tarifas Mensuales
D71: Prima Titular | F71: =VLOOKUP($J$13,Tablas!$A$1250:$H$1318,4,TRUE) -> 303.6133322 | G71: =VLOOKUP($J$13,Tablas!$A$1250:$H$1318,5,TRUE) -> 231.2799992 | H71: =VLOOKUP($J$13,Tablas!$A$1250:$H$1318,6,TRUE) -> 190.866666 | I71: =VLOOKUP($J$13,Tablas!$A$1250:$H$1318,7,TRUE) -> 164.5466661 | J71: =VLOOKUP($J$13,Tablas!$A$1250:$H$1318,8,TRUE) -> 132.9999995
D72: Prima Cónyuge | F72: =IF($G$13=1,0,(VLOOKUP($J$15,Tablas!$A$1250:$H$1318,4,TRUE))) -> 454.2533317 | G72: =IF($G$13=1,0,(VLOOKUP($J$15,Tablas!$A$1250:$H$1318,5,TRUE))) -> 340.4799988 | H72: =IF($G$13=1,0,(VLOOKUP($J$15,Tablas!$A$1250:$H$1318,6,TRUE))) -> 293.9066656 | I72: =IF($G$13=1,0,(VLOOKUP($J$15,Tablas!$A$1250:$H$1318,7,TRUE))) -> 248.1733324 | J72: =IF($G$13=1,0,(VLOOKUP($J$15,Tablas!$A$1250:$H$1318,8,TRUE))) -> 200.1999993
D73: Primas Hijos | F73: =IF($G$15=0,0,(VLOOKUP($G$15,Tablas!$A$1313:$H$1315,4,TRUE))) -> 268.8933324 | G73: =IF($G$15=0,0,(VLOOKUP($G$15,Tablas!$A$1313:$H$1315,5,TRUE))) -> 226.9866659 | H73: =IF($G$15=0,0,(VLOOKUP($G$15,Tablas!$A$1313:$H$1315,6,TRUE))) -> 120.9599996 | I73: =IF($G$15=0,0,(VLOOKUP($G$15,Tablas!$A$1313:$H$1315,7,TRUE))) -> 115.6399996 | J73: =IF($G$15=0,0,(VLOOKUP($G$15,Tablas!$A$1313:$H$1315,8,TRUE))) -> 97.25333299
D74: Anexo: Complicaciones de Maternidad | F74: =+IF($F$18=FALSE,0,Tablas!D$1057) -> 0 | G74: =+IF($F$18=FALSE,0,Tablas!E$1057) -> 0 | H74: =+IF($F$18=FALSE,0,Tablas!F$1057) -> 0 | I74: =+IF($F$18=FALSE,0,Tablas!G$1057) -> 61.875 | J74: =+IF($F$18=FALSE,0,Tablas!H$1057) -> 61.875
D75: Anexo: Trasplante Organos | F75: =IF($F$19=FALSE,0,Tablas!$D$1317) -> 27.9999999 | G75: =IF($F$19=FALSE,0,Tablas!$D$1317) -> 27.9999999 | H75: =IF($F$19=FALSE,0,Tablas!$D$1317) -> 27.9999999 | I75: =IF($F$19=FALSE,0,Tablas!$D$1317) -> 27.9999999 | J75: =IF($F$19=FALSE,0,Tablas!$D$1317) -> 27.9999999
D76: Anexo: Eliminacion de Deducible | F76: =IF($F$20=FALSE,0,Tablas!D1318) -> 4.199999985 | G76: =IF($F$20=FALSE,0,Tablas!E1318) -> 16.79999994 | H76: =IF($F$20=FALSE,0,Tablas!F1318) -> 32.19999989 | I76: =IF($F$20=FALSE,0,Tablas!G1318) -> 72.33333307 | J76: =IF($F$20=FALSE,0,Tablas!H1318) -> 124.1333329
D77: PRIMA NETA | F77: =SUM(F71:F76) -> 1058.959996 | G77: =SUM(G71:G76) -> 843.5466637 | H77: 665.933331 | I77: 690.5683311 | J77: 644.4616646
F78: 0 | G78: 0 | H78: 0 | I78: 0 | J78: 0
D79: Costo Administrativo Anual | F79: 75 | G79: 75 | H79: 75 | I79: 75 | J79: 75
D80: IVA (12%) | F80: =+(F77+F78+F79)*0% -> 0 | G80: =+(G77+G78+G79)*0% -> 0 | H80: 0 | I80: 0 | J80: 0
D81: 1ra Cuota | F81: =SUM(F77:F80) -> 1133.959996 | G81: =SUM(G77:G80) -> 918.5466637 | H81: =SUM(H77:H80) -> 740.933331 | I81: =SUM(I77:I80) -> 765.5683311 | J81: =SUM(J77:J80) -> 719.4616646
D82: 2da a 12va Cuota | F82: =F77+F78+F80 -> 1058.959996 | G82: =G77+G78+G80 -> 843.5466637 | H82: 665.933331 | I82: 690.5683311 | J82: 644.4616646
D83: TOTAL | F83: =F81+F82*11 -> 12782.51995 | G83: =G81+G82*11 -> 10197.55996 | H83: 8066.199971 | I83: 8361.819973 | J83: 7808.539975
D85: Tarifas en US $ - Válidas desde 01 Ene 2022
D86: Este presupuesto solamente tiene carácter informativo y en ningún momento expresa compromiso legal para suministrarle cobertura de seguro. La emisión de una póliza de seguro Bupa está sujeta a todas las evaluaciones de riesgo por parte de Bupa y a la recepción de todos los pagos de prima requeridos.

Sheet Unique Care - Deducible Cero
A8: BUPA UNIQUE CARE - DEDUCIBLE CERO | D8: Nombre del Asegurado: | E8: =+'INGRESO DE DATOS'!$D$14 -> Nombre
D10: Intermediario: | E10: =+'INGRESO DE DATOS'!$D$24 -> Agente / Agencia
D12: Fecha: | E12: =+TODAY() -> 2021-12-29 | G12: =IF('INGRESO DE DATOS'!G20>0,"Descuento","") ->  | H12: =IF('INGRESO DE DATOS'!G20>0,'INGRESO DE DATOS'!G20,"") -> 
F14: Numero de Adultos: | G14: =+'INGRESO DE DATOS'!$G$16 -> 2 | I14: Edad de Titular: | J14: =+'INGRESO DE DATOS'!$G$18 -> 32
F16: Numero de Hijos: | G16: =+'INGRESO DE DATOS'!$J$16 -> 3 | I16: Edad de Conyuge: | J16: =+'INGRESO DE DATOS'!$J$18 -> 46
F18: TRUE | H18: Complicaciones de Maternidad (+ $500,000)
F20: TRUE | G20: FALSE | H20: Trasplante de Órganos (+ $500,000)
D22: Deducibles | F22: PLAN 1 | G22: PLAN 2 | H22: PLAN 3 | I22: PLAN 4
D23: Dentro del pais de residencia | F23: 0 | G23: 0 | H23: 0 | I23: 0
D24: Fuera del pais de residencia | F24: 1000 | G24: 2000 | H24: 3000 | I24: 5000
D26: Tarifas Anuales
D27: Prima Titular | F27: =VLOOKUP($J$14,Tablas!$A$633:$H$695,4,TRUE) -> 3514 | G27: =VLOOKUP($J$14,Tablas!$A$633:$H$695,5,TRUE) -> 3092 | H27: =VLOOKUP($J$14,Tablas!$A$633:$H$695,6,TRUE) -> 2766 | I27: =VLOOKUP($J$14,Tablas!$A$633:$H$695,7,TRUE) -> 2441
D28: Prima Cónyuge | F28: =IF($G$14=1,0,(VLOOKUP($J$16,Tablas!$A$633:$H$695,4,TRUE))) -> 5257 | G28: =IF($G$14=1,0,(VLOOKUP($J$16,Tablas!$A$633:$H$695,5,TRUE))) -> 4625 | H28: =IF($G$14=1,0,(VLOOKUP($J$16,Tablas!$A$633:$H$695,6,TRUE))) -> 4139 | I28: =IF($G$14=1,0,(VLOOKUP($J$16,Tablas!$A$633:$H$695,7,TRUE))) -> 3651
D29: Primas Hijos | F29: =IF($G$16=0,0,(VLOOKUP($G$16,Tablas!$A$696:$H$700,4,TRUE))) -> 3112 | G29: =IF($G$16=0,0,(VLOOKUP($G$16,Tablas!$A$696:$H$700,5,TRUE))) -> 2737 | H29: =IF($G$16=0,0,(VLOOKUP($G$16,Tablas!$A$696:$H$700,6,TRUE))) -> 2450 | I29: =IF($G$16=0,0,(VLOOKUP($G$16,Tablas!$A$696:$H$700,7,TRUE))) -> 2161
D30: Anexo: Complicaciones de Maternidad | F30: =+IF($F$18=FALSE,0,Tablas!D$699) -> 0 | G30: =+IF($F$18=FALSE,0,Tablas!E$699) -> 0 | H30: =+IF($F$18=FALSE,0,Tablas!F$699) -> 0 | I30: =+IF($F$18=FALSE,0,Tablas!G$699) -> 225
D31: Anexo: Trasplante Organos | F31: =IF($F$20=FALSE,0,Tablas!D$341) -> 300 | G31: =IF($F$20=FALSE,0,Tablas!E$341) -> 300 | H31: =IF($F$20=FALSE,0,Tablas!F$341) -> 300 | I31: =IF($F$20=FALSE,0,Tablas!G$341) -> 300
D32: PRIMA NETA | F32: =SUM(F27:F31) -> 12183 | G32: =SUM(G27:G31) -> 10754 | H32: 9655 | I32: 8778
D33: =IF('INGRESO DE DATOS'!G20>0,"Descuento","") ->  | F33: =IF('INGRESO DE DATOS'!$G$20>0,-(F27+F28+F29)*'INGRESO DE DATOS'!$G$20,0) -> 0 | G33: =IF('INGRESO DE DATOS'!$G$20>0,-(G27+G28+G29)*'INGRESO DE DATOS'!$G$20,0) -> 0 | H33: =IF('INGRESO DE DATOS'!$G$20>0,-(H27+H28+H29)*'INGRESO DE DATOS'!$G$20,0) -> 0 | I33: =IF('INGRESO DE DATOS'!$G$20>0,-(I27+I28+I29)*'INGRESO DE DATOS'!$G$20,0) -> 0
D34: Costo Administrativo Anual | F34: 75 | G34: 75 | H34: 75 | I34: 75
D35: IVA (12%) | F35: =+(F32+F33+F34)*0% -> 0 | G35: =+(G32+G33+G34)*0% -> 0 | H35: 0 | I35: 0
D36: TOTAL | F36: =SUM(F32:F35) -> 12258 | G36: =SUM(G32:G35) -> 10829 | H36: =SUM(H32:H35) -> 9730 | I36: =SUM(I32:I35) -> 8853
D38: Tarifas Semestrales
D39: Prima Titular | F39: =VLOOKUP($J$14,Tablas!$A$705:$H$767,4,TRUE) -> 1862.42 | G39: =VLOOKUP($J$14,Tablas!$A$705:$H$767,5,TRUE) -> 1638.76 | H39: =VLOOKUP($J$14,Tablas!$A$705:$H$767,6,TRUE) -> 1465.98 | I39: =VLOOKUP($J$14,Tablas!$A$705:$H$767,7,TRUE) -> 1293.73
D40: Prima Cónyuge | F40: =IF($G$14=1,0,(VLOOKUP($J$16,Tablas!$A$705:$H$767,4,TRUE))) -> 2786.21 | G40: =IF($G$14=1,0,(VLOOKUP($J$16,Tablas!$A$705:$H$767,5,TRUE))) -> 2451.25 | H40: =IF($G$14=1,0,(VLOOKUP($J$16,Tablas!$A$705:$H$767,6,TRUE))) -> 2193.67 | I40: =IF($G$14=1,0,(VLOOKUP($J$16,Tablas!$A$705:$H$767,7,TRUE))) -> 1935.03
D41: Primas Hijos | F41: =IF($G$16=0,0,(VLOOKUP($G$16,Tablas!$A$768:$H$772,4,TRUE))) -> 1649.36 | G41: =IF($G$16=0,0,(VLOOKUP($G$16,Tablas!$A$768:$H$772,5,TRUE))) -> 1450.61 | H41: =IF($G$16=0,0,(VLOOKUP($G$16,Tablas!$A$768:$H$772,6,TRUE))) -> 1298.5 | I41: =IF($G$16=0,0,(VLOOKUP($G$16,Tablas!$A$768:$H$772,7,TRUE))) -> 1145.33
D42: Anexo: Complicaciones de Maternidad | F42: =+IF($F$18=FALSE,0,Tablas!D$771) -> 0 | G42: =+IF($F$18=FALSE,0,Tablas!E$771) -> 0 | H42: =+IF($F$18=FALSE,0,Tablas!F$771) -> 0 | I42: =+IF($F$18=FALSE,0,Tablas!G$771) -> 119.25
D43: Anexo: Trasplante Organos | F43: =IF($F$20=FALSE,0,Tablas!D$413) -> 159 | G43: =IF($F$20=FALSE,0,Tablas!E$413) -> 159 | H43: =IF($F$20=FALSE,0,Tablas!F$413) -> 159 | I43: =IF($F$20=FALSE,0,Tablas!G$413) -> 159
D44: PRIMA NETA | F44: =SUM(F39:F43) -> 6456.99 | G44: =SUM(G39:G43) -> 5699.62 | H44: 5117.15 | I44: 4652.34
D45: =IF('INGRESO DE DATOS'!G20>0,"Descuento","") ->  | F45: =IF('INGRESO DE DATOS'!$G$20>0,-(F39+F40+F41)*'INGRESO DE DATOS'!$G$20,0) -> 0 | G45: =IF('INGRESO DE DATOS'!$G$20>0,-(G39+G40+G41)*'INGRESO DE DATOS'!$G$20,0) -> 0 | H45: =IF('INGRESO DE DATOS'!$G$20>0,-(H39+H40+H41)*'INGRESO DE DATOS'!$G$20,0) -> 0 | I45: =IF('INGRESO DE DATOS'!$G$20>0,-(I39+I40+I41)*'INGRESO DE DATOS'!$G$20,0) -> 0
D46: Costo Administrativo Anual | F46: 75 | G46: 75 | H46: 75 | I46: 75
D47: IVA (12%) | F47: =+(F44+F45+F46)*0% -> 0 | G47: =+(G44+G45+G46)*0% -> 0 | H47: 0 | I47: 0
D48: 1ra Cuota | F48: =SUM(F44:F47) -> 6531.99 | G48: =SUM(G44:G47) -> 5774.62 | H48: =SUM(H44:H47) -> 5192.15 | I48: =SUM(I44:I47) -> 4727.34
D49: 2da Cuota | F49: =F44+F45+F47 -> 6456.99 | G49: =G44+G45+G47 -> 5699.62 | H49: 5117.15 | I49: 4652.34
D50: TOTAL | F50: =F48+F49 -> 12988.98 | G50: =G48+G49 -> 11474.24 | H50: 10309.3 | I50: 9379.68
D52: Tarifas Trimestrales
D53: Prima Titular | F53: =VLOOKUP($J$14,Tablas!$A$1139:$H$1201,4,TRUE) -> 966.35 | G53: =VLOOKUP($J$14,Tablas!$A$1139:$H$1201,5,TRUE) -> 850.3 | H53: =VLOOKUP($J$14,Tablas!$A$1139:$H$1201,6,TRUE) -> 760.65 | I53: =VLOOKUP($J$14,Tablas!$A$1139:$H$1201,7,TRUE) -> 671.275
D54: Prima Cónyuge | F54: =IF($G$14=1,0,(VLOOKUP($J$16,Tablas!$A$1139:$H$1201,4,TRUE))) -> 1445.675 | G54: =IF($G$14=1,0,(VLOOKUP($J$16,Tablas!$A$1139:$H$1201,5,TRUE))) -> 1271.875 | H54: =IF($G$14=1,0,(VLOOKUP($J$16,Tablas!$A$1139:$H$1201,6,TRUE))) -> 1138.225 | I54: =IF($G$14=1,0,(VLOOKUP($J$16,Tablas!$A$1139:$H$1201,7,TRUE))) -> 1004.025
D55: Primas Hijos | F55: =IF($G$16=0,0,(VLOOKUP($G$16,Tablas!$A$1202:$H$1207,4,TRUE))) -> 855.8 | G55: =IF($G$16=0,0,(VLOOKUP($G$16,Tablas!$A$1202:$H$1207,5,TRUE))) -> 752.675 | H55: =IF($G$16=0,0,(VLOOKUP($G$16,Tablas!$A$1202:$H$1207,6,TRUE))) -> 673.75 | I55: =IF($G$16=0,0,(VLOOKUP($G$16,Tablas!$A$1202:$H$1207,7,TRUE))) -> 594.275
D56: Anexo: Complicaciones de Maternidad | F56: =+IF($F$18=FALSE,0,Tablas!D1205) -> 0 | G56: =+IF($F$18=FALSE,0,Tablas!E1205) -> 0 | H56: =+IF($F$18=FALSE,0,Tablas!F1205) -> 0 | I56: =+IF($F$18=FALSE,0,Tablas!G1205) -> 61.875
D57: Anexo: Trasplante Organos | F57: =IF($F$20=FALSE,0,Tablas!D$1206) -> 82.5 | G57: =IF($F$20=FALSE,0,Tablas!E$1206) -> 82.5 | H57: =IF($F$20=FALSE,0,Tablas!F$1206) -> 82.5 | I57: =IF($F$20=FALSE,0,Tablas!G$1206) -> 82.5
D58: PRIMA NETA | F58: =SUM(F53:F57) -> 3350.325 | G58: =SUM(G53:G57) -> 2957.35 | H58: 2655.125 | I58: 2413.95
D59: =IF('INGRESO DE DATOS'!G33>0,"Descuento","") ->  | F59: =IF('INGRESO DE DATOS'!$G$20>0,-(F53+F54+F55)*'INGRESO DE DATOS'!$G$20,0) -> 0 | G59: =IF('INGRESO DE DATOS'!$G$20>0,-(G53+G54+G55)*'INGRESO DE DATOS'!$G$20,0) -> 0 | H59: =IF('INGRESO DE DATOS'!$G$20>0,-(H53+H54+H55)*'INGRESO DE DATOS'!$G$20,0) -> 0 | I59: =IF('INGRESO DE DATOS'!$G$20>0,-(I53+I54+I55)*'INGRESO DE DATOS'!$G$20,0) -> 0
D60: Costo Administrativo Anual | F60: 75 | G60: 75 | H60: 75 | I60: 75
F61: =+(F58+F59+F60)*0% -> 0 | G61: =+(G58+G59+G60)*0% -> 0 | H61: 0 | I61: 0
D62: 1ra Cuota | F62: =SUM(F58:F61) -> 3425.325 | G62: =SUM(G58:G61) -> 3032.35 | H62: =SUM(H58:H61) -> 2730.125 | I62: =SUM(I58:I61) -> 2488.95
D63: 2da a 4ta Cuota | F63: =F58+F59+F61 -> 3350.325 | G63: =G58+G59+G61 -> 2957.35 | H63: 2655.125 | I63: 2413.95
D64: TOTAL | F64: =F62+F63*3 -> 13476.3 | G64: =G62+G63*3 -> 11904.4 | H64: 10695.5 | I64: 9730.8
D66: Tarifas Mensuales
D67: Prima Titular | F67: =VLOOKUP($J$14,Tablas!$A$1324:$H$1391,4,TRUE) -> 327.9733322 | G67: =VLOOKUP($J$14,Tablas!$A$1324:$H$1391,5,TRUE) -> 288.5866656 | H67: =VLOOKUP($J$14,Tablas!$A$1324:$H$1391,6,TRUE) -> 258.1599991 | I67: =VLOOKUP($J$14,Tablas!$A$1324:$H$1391,7,TRUE) -> 227.8266659
D68: Prima Cónyuge | F68: =IF($G$14=1,0,(VLOOKUP($J$16,Tablas!$A$1324:$H$1391,4,TRUE))) -> 490.6533316 | G68: =IF($G$14=1,0,(VLOOKUP($J$16,Tablas!$A$1324:$H$1391,5,TRUE))) -> 431.6666651 | H68: =IF($G$14=1,0,(VLOOKUP($J$16,Tablas!$A$1324:$H$1391,6,TRUE))) -> 386.3066653 | I68: =IF($G$14=1,0,(VLOOKUP($J$16,Tablas!$A$1324:$H$1391,7,TRUE))) -> 340.7599988
D69: Primas Hijos | F69: =IF($G$16=0,0,(VLOOKUP($G$16,Tablas!$A$1387:$H$1389,4,TRUE))) -> 290.4533323 | G69: =IF($G$16=0,0,(VLOOKUP($G$16,Tablas!$A$1387:$H$1389,5,TRUE))) -> 255.4533324 | H69: =IF($G$16=0,0,(VLOOKUP($G$16,Tablas!$A$1387:$H$1389,6,TRUE))) -> 228.6666659 | I69: =IF($G$16=0,0,(VLOOKUP($G$16,Tablas!$A$1387:$H$1389,7,TRUE))) -> 201.6933326
D70: Anexo: Complicaciones de Maternidad | F70: =+IF($F$18=FALSE,0,Tablas!D$1390) -> 0 | G70: =+IF($F$18=FALSE,0,Tablas!E$1390) -> 0 | H70: =+IF($F$18=FALSE,0,Tablas!F$1390) -> 0 | I70: =+IF($F$18=FALSE,0,Tablas!G$1390) -> 20.99999993
D71: Anexo: Trasplante Organos | F71: =IF($F$20=FALSE,0,Tablas!D1391) -> 27.9999999 | G71: =IF($F$20=FALSE,0,Tablas!E1391) -> 27.9999999 | H71: =IF($F$20=FALSE,0,Tablas!F1391) -> 27.9999999 | I71: =IF($F$20=FALSE,0,Tablas!G1391) -> 27.9999999
D72: PRIMA NETA | F72: =SUM(F67:F71) -> 1137.079996 | G72: =SUM(G67:G71) -> 1003.706663 | H72: 901.1333301 | I72: 819.2799971
F73: 0 | G73: 0 | H73: 0 | I73: 0
D74: Costo Administrativo Anual | F74: 75 | G74: 75 | H74: 75 | I74: 75
D75: IVA (12%) | F75: =+(F72+F73+F74)*0% -> 0 | G75: =+(G72+G73+G74)*0% -> 0 | H75: 0 | I75: 0
D76: 1ra Cuota | F76: =SUM(F72:F75) -> 1212.079996 | G76: =SUM(G72:G75) -> 1078.706663 | H76: =SUM(H72:H75) -> 976.1333301 | I76: =SUM(I72:I75) -> 894.2799971
D77: 2da a 12va Cuota | F77: =F72+F73+F75 -> 1137.079996 | G77: =G72+G73+G75 -> 1003.706663 | H77: 901.1333301 | I77: 819.2799971
D78: TOTAL | F78: =F76+F77*11 -> 13719.95995 | G78: =G76+G77*11 -> 12119.47996 | H78: 10888.59996 | I78: 9906.359965
D80: Tarifas en US $ - Válidas desde 01 Ene 2022
D81: Este presupuesto solamente tiene carácter informativo y en ningún momento expresa compromiso legal para suministrarle cobertura de seguro. La emisión de una póliza de seguro Bupa está sujeta a todas las evaluaciones de riesgo por parte de Bupa y a la recepción de todos los pagos de prima requeridos.

Sheet Advantage (LA) (hidden)
A10: Cotización de Seguro Médico Internacional - Bupa ADVANTAGE Care (cobertura solo Latinoamérica)
A12: Bupa Advantage Care (cobertura solo en Latinoamérica) | H12: =+'INGRESO DE DATOS'!$D$14 -> Nombre
A13: Cobertura Máxima anual | C13: US $ 3,500,000
A14: Cobertura Geografica | C14: Limitada a Latinoamérica excluyendo México | H14: =+'INGRESO DE DATOS'!$D$24 -> Agente / Agencia
A15: Condiciones médicas cubiertas | C15: Todas las condiciones médicas
A16: Redes de proveedores | C16: Red de Proveedores "Bupa Advantage" | J16: =+'INGRESO DE DATOS'!$G$16 -> 2 | M16: =+'INGRESO DE DATOS'!$G$18 -> 32
A17: Opciones fuera de la Red | C17: NO, solo en casos de emergencia | F17: FECHA DE COTIZACION :
A18: Requiere preautorización | C18: SI, 30% de penalización por omitir prenotificación | F18: =NOW() -> 2021-12-29T17:58:50.530 | J18: =+'INGRESO DE DATOS'!$J$16 -> 3 | M18: =+'INGRESO DE DATOS'!$J$18 -> 46
A20: Número máximo de días de hospitalización | C20: Ilimitado | I20: TRUE | K20: COMPLICACIONES DE MATERNIDAD
A21: Habitación y alimentación | C21: 100% dentro de Red Bupa
C22: "UCR" para L.A. en emergencias fuera de Red Bupa | I22: TRUE | K22: TRASPLANTE DE ORGANOS
A23: Cuidados Intensivos | C23: 100% dentro de Red Bupa
C24: "UCR" para L.A. en emergencias fuera de Red Bupa
A25: Cobertura de Maternidad | C25: $5,000 (Excepto planes 4,5, y 6) | F25: Deducibles | H25: PLAN 1 | I25: PLAN 2 | J25: PLAN 3 | K25: PLAN 4 | L25: PLAN 5 | M25: PLAN 6
A26: Cobertura Provisional de Recién Nacido | C26: $30,000 por los primeros 90 días | F26: Dentro del pais de residencia | H26: n/a | I26: 1000 | J26: 2000 | K26: 5000 | L26: 10000 | M26: 20000
A27: Cuidado del Recién Nacido saludable | C27: Ya incluída dentro del beneficio de Maternidad | F27: Fuera del pais de residencia | H27: n/a | I27: 2000 | J27: 3000 | K27: 5000 | L27: 10000 | M27: 20000
A28: Cobertura de Complicaciones de Maternidad | C28: Disponible a través de cobertura opcional adicional
A29: Trasplante de Organos | C29: $1,000,000 de por vida, por diagnóstico
A30: Condiciones congénitas y hereditarias | C30: <18 años $300,000 de por vida; >=18 al 100% | F30: Tarifas Anuales
A31: Coberturas opcionales (Riders) | C31: Complicaciones de Maternidad por $500,000 | F31: Prima de Titular : | H31: n/a | I31: =VLOOKUP($M$16,Tablas!$A$420:$H$443,4,TRUE) -> 4550 | J31: =VLOOKUP($M$16,Tablas!$A$420:$H$443,5,TRUE) -> 3480 | K31: =VLOOKUP($M$16,Tablas!$A$420:$H$443,6,TRUE) -> 2690 | L31: =VLOOKUP($M$16,Tablas!$A$420:$H$443,7,TRUE) -> 2059 | M31: =VLOOKUP($M$16,Tablas!$A$420:$H$443,8,TRUE) -> 1587
C32: Trasplante de órganos por $ 300,000 adicionales | F32: Prima de Cónyuge | H32: n/a | I32: =IF($J$16=1,0,(VLOOKUP($M$18,Tablas!$A$420:$H$443,4,TRUE))) -> 6617 | J32: =IF($J$16=1,0,(VLOOKUP($M$18,Tablas!$A$420:$H$443,5,TRUE))) -> 5063 | K32: =IF($J$16=1,0,(VLOOKUP($M$18,Tablas!$A$420:$H$443,6,TRUE))) -> 3827 | L32: =IF($J$16=1,0,(VLOOKUP($M$18,Tablas!$A$420:$H$443,7,TRUE))) -> 2988 | M32: =IF($J$16=1,0,(VLOOKUP($M$18,Tablas!$A$420:$H$443,8,TRUE))) -> 2317
A33: Acompañamiento de menores hospitalizados | C33: $300 por día | F33: Primas Hijos : | H33: n/a | I33: =IF($J$18=0,0,(VLOOKUP($J$18,Tablas!$A$444:$H$446,4,TRUE))) -> 3757 | J33: =IF($J$18=0,0,(VLOOKUP($J$18,Tablas!$A$444:$H$446,5,TRUE))) -> 2580 | K33: =IF($J$18=0,0,(VLOOKUP($J$18,Tablas!$A$444:$H$446,6,TRUE))) -> 2048 | L33: =IF($J$18=0,0,(VLOOKUP($J$18,Tablas!$A$444:$H$446,7,TRUE))) -> 1803 | M33: =IF($J$18=0,0,(VLOOKUP($J$18,Tablas!$A$444:$H$446,8,TRUE))) -> 1269
A34: Ambulancia aérea | C34: $100,000 por año y ticket aéreo de retorno | F34: Prima Rider Complic. Maternidad | H34: n/a | I34: =+IF($I$20=FALSE,0,Tablas!D$447) -> 225 | J34: =+IF($I$20=FALSE,0,Tablas!E$447) -> 225 | K34: =+IF($I$20=FALSE,0,Tablas!F$447) -> 225 | L34: =+IF($I$20=FALSE,0,Tablas!G$447) -> 225 | M34: =+IF($I$20=FALSE,0,Tablas!H$447) -> 225
A35: Repatriación restos mortales | C35: 1 | F35: Prima Rider Trasplante Organos | H35: n/a | I35: =IF($I$22=FALSE,0,Tablas!D$448) -> 300 | J35: =IF($I$22=FALSE,0,Tablas!E$448) -> 300 | K35: =IF($I$22=FALSE,0,Tablas!F$448) -> 300 | L35: =IF($I$22=FALSE,0,Tablas!G$448) -> 300 | M35: =IF($I$22=FALSE,0,Tablas!H$448) -> 300
A36: Medicamentos por receta | C36: $6,000 por Asegurado, por año póliza | F36: TOTAL PRIMA NETA : | H36: n/a | I36: =SUM(I31:I35) -> 15449 | J36: 11648 | K36: 9090 | L36: 7375 | M36: 5698
A37: Almacenamiento de sangre de cordon umbilical | C37: $500 (Excepto planes 4,5, y 6) | F37: Costo Administrativo Anual : | H37: n/a | I37: 75 | J37: 75 | K37: 75 | L37: 75 | M37: 75
F38: GRAN TOTAL : | H38: n/a | I38: =SUM(I36:I37) -> 15524 | J38: =SUM(J36:J37) -> 11723 | K38: =SUM(K36:K37) -> 9165 | L38: =SUM(L36:L37) -> 7450 | M38: =SUM(M36:M37) -> 5773
A39: Atención médica en el hogar | C39: 100% de usual/acostumbrado y razonable
A40: Rehabilitación | C40: 100% de usual/acostumbrado y razonable | F40: Tarifas Semestrales
A41: Residencia y cuidados paliativos | C41: 100% de usual/acostumbrado y razonable | F41: Prima de Titular : | H41: n/a | I41: =VLOOKUP($M$16,Tablas!$A$453:$H$476,4,TRUE) -> 2411.5 | J41: =VLOOKUP($M$16,Tablas!$A$453:$H$476,5,TRUE) -> 1844.4 | K41: =VLOOKUP($M$16,Tablas!$A$453:$H$476,6,TRUE) -> 1425.7 | L41: =VLOOKUP($M$16,Tablas!$A$453:$H$476,7,TRUE) -> 1091.27 | M41: =VLOOKUP($M$16,Tablas!$A$453:$H$476,8,TRUE) -> 841.11
A42: Cobertura de actividades peligrosas | C42: 1 | F42: Prima de Cónyuge | H42: n/a | I42: =IF($J$16=1,0,(VLOOKUP($M$18,Tablas!$A$453:$H$476,4,TRUE))) -> 3507.01 | J42: =IF($J$16=1,0,(VLOOKUP($M$18,Tablas!$A$453:$H$476,5,TRUE))) -> 2683.39 | K42: =IF($J$16=1,0,(VLOOKUP($M$18,Tablas!$A$453:$H$476,6,TRUE))) -> 2028.31 | L42: =IF($J$16=1,0,(VLOOKUP($M$18,Tablas!$A$453:$H$476,7,TRUE))) -> 1583.64 | M42: =IF($J$16=1,0,(VLOOKUP($M$18,Tablas!$A$453:$H$476,8,TRUE))) -> 1228.01
A43: Chequeos generales de rutina | C43: Hasta US$150 por año póliza.Sin deducible | F43: Primas Hijos : | H43: n/a | I43: =IF($J$18=0,0,(VLOOKUP($J$18,Tablas!$A$477:$H$479,4,TRUE))) -> 1991.21 | J43: =IF($J$18=0,0,(VLOOKUP($J$18,Tablas!$A$477:$H$479,5,TRUE))) -> 1367.4 | K43: =IF($J$18=0,0,(VLOOKUP($J$18,Tablas!$A$477:$H$479,6,TRUE))) -> 1085.44 | L43: =IF($J$18=0,0,(VLOOKUP($J$18,Tablas!$A$477:$H$479,7,TRUE))) -> 955.59 | M43: =IF($J$18=0,0,(VLOOKUP($J$18,Tablas!$A$477:$H$479,8,TRUE))) -> 672.57
A44: Cobertura de VIH, SIDA, CAS | C44: Solo como efecto de transfusión de sangre | F44: Prima Rider Complic. Maternidad | H44: n/a | I44: =+IF($I$20=FALSE,0,Tablas!D$480) -> 119.25 | J44: =+IF($I$20=FALSE,0,Tablas!E$480) -> 119.25 | K44: =+IF($I$20=FALSE,0,Tablas!F$480) -> 119.25 | L44: =+IF($I$20=FALSE,0,Tablas!G$480) -> 119.25 | M44: =+IF($I$20=FALSE,0,Tablas!H$480) -> 119.25
A45: Cobertura de brazos y piernas artificiales | C45: $30,000 por año y hasta $120,000 de por vida | F45: Prima Rider Trasplante Organos | H45: n/a | I45: =IF($I$22=FALSE,0,Tablas!D$481) -> 159 | J45: =IF($I$22=FALSE,0,Tablas!E$481) -> 159 | K45: =IF($I$22=FALSE,0,Tablas!F$481) -> 159 | L45: =IF($I$22=FALSE,0,Tablas!G$481) -> 159 | M45: =IF($I$22=FALSE,0,Tablas!H$481) -> 159
A46: Cobertura extendida para dependientes en caso de muerte de asegurado principal | C46: 2 años sin costo | F46: TOTAL PRIMA NETA : | H46: n/a | I46: =SUM(I41:I45) -> 8187.97 | J46: 6173.44 | K46: 4817.7 | L46: 3908.75 | M46: 3019.94
F47: Costo Administrativo Anual : | H47: n/a | I47: 75 | J47: 75 | K47: 75 | L47: 75 | M47: 75
F48: GRAN TOTAL (1ra Cuota) : | H48: n/a | I48: =SUM(I46:I47) -> 8262.97 | J48: =SUM(J46:J47) -> 6248.44 | K48: =SUM(K46:K47) -> 4892.7 | L48: =SUM(L46:L47) -> 3983.75 | M48: =SUM(M46:M47) -> 3094.94
F49: GRAN TOTAL (2da Cuota) : | H49: n/a | I49: =I46 -> 8187.97 | J49: =J46 -> 6173.44 | K49: 4817.7 | L49: 3908.75 | M49: 3019.94
F50: Tarifas en US $ - Válidas desde 01 Ene 2013

Sheet Blue 500 (hidden)
A10: Cotización de Seguro Médico Internacional - Bupa Blue 500 Guatemala
A12: Bupa Blue 500 Guatemala | H12: =+'INGRESO DE DATOS'!$D$14 -> Nombre
A13: Cobertura Máxima anual | C13: US$500,000
A14: Cobertura Geografica | C14: Cobertura mundial | H14: =+'INGRESO DE DATOS'!$D$24 -> Agente / Agencia
A15: Condiciones médicas cubiertas | C15: Todas las condiciones médicas
A16: Redes de proveedores | C16: Red de Proveedores Alpha | J16: =+'INGRESO DE DATOS'!$G$16 -> 2 | M16: =+'INGRESO DE DATOS'!$G$18 -> 32
A17: Opciones fuera de la Red | C17: 30%/70% | F17: FECHA DE COTIZACION :
A18: Requiere preautorización | C18: SI, 30% de penalización por omitir prenotificación | F18: =NOW() -> 2021-12-29T17:58:50.530 | J18: =+'INGRESO DE DATOS'!$J$16 -> 3 | M18: =+'INGRESO DE DATOS'!$J$18 -> 46
A20: Número máximo de días de hospitalización | C20: Ilimitado | I20: TRUE | K20: COMPLICACIONES DE MATERNIDAD
A21: Habitación y alimentación | C21: 100% dentro de Red Bupa
C22: 70% fuera de la Red Bupa | I22: TRUE | K22: TRASPLANTE DE ORGANOS
A23: Cuidados Intensivos | C23: 100% dentro de Red Bupa
C24: 70% fuera de la Red Bupa
A25: Cobertura de Maternidad | C25: $3,500 (Excepto planes 4,5, y 6) | F25: Deducibles | I25: PLAN 1 | J25: PLAN 2 | K25: PLAN 3 | L25: PLAN 4 | M25: PLAN 5
A26: Cobertura Provisional de Recién Nacido | C26: $10,000 por los primeros 90 días | F26: Dentro del pais de residencia | I26: 250 | J26: 500 | K26: 1000 | L26: 2000 | M26: 5000
A27: Cuidado del Recién Nacido saludable | C27: 2 visitas por año/ $50 vacunas | F27: Fuera del pais de residencia | I27: 500 | J27: 1000 | K27: 2000 | L27: 4000 | M27: 5000
A28: Cobertura de Complicaciones de Maternidad | C28: 50000
A29: Trasplante de Organos | C29: 250000
A30: Condiciones congénitas y hereditarias | C30: <18 años $75,000 de por vida; >=18 al 100% | F30: Tarifas Anuales
A31: Coberturas opcionales (Riders) | C31: Complicaciones de Maternidad por $500,000 | F31: Prima de Titular : | I31: =VLOOKUP($M$16,Tablas!$A$633:$H$695,4,TRUE) -> 3514 | J31: =VLOOKUP($M$16,Tablas!$A$633:$H$695,5,TRUE) -> 3092 | K31: =VLOOKUP($M$16,Tablas!$A$633:$H$695,6,TRUE) -> 2766 | L31: =VLOOKUP($M$16,Tablas!$A$633:$H$695,7,TRUE) -> 2441 | M31: =VLOOKUP($M$16,Tablas!$A$633:$H$695,8,TRUE) -> 0
C32: Trasplante de órganos por $ 500,000 de por vida | F32: Prima de Cónyuge | I32: =IF($J$16=1,0,(VLOOKUP($M$18,Tablas!$A$633:$H$695,4,TRUE))) -> 5257 | J32: =IF($J$16=1,0,(VLOOKUP($M$18,Tablas!$A$633:$H$695,5,TRUE))) -> 4625 | K32: =IF($J$16=1,0,(VLOOKUP($M$18,Tablas!$A$633:$H$695,6,TRUE))) -> 4139 | L32: =IF($J$16=1,0,(VLOOKUP($M$18,Tablas!$A$633:$H$695,7,TRUE))) -> 3651 | M32: =IF($J$16=1,0,(VLOOKUP($M$18,Tablas!$A$633:$H$695,8,TRUE))) -> 0
A33: Acompañamiento de menores hospitalizados | C33: No incluye | F33: Primas Hijos : | I33: =IF($J$18=0,0,(VLOOKUP($J$18,Tablas!$A$696:$H$698,4,TRUE))) -> 3112 | J33: =IF($J$18=0,0,(VLOOKUP($J$18,Tablas!$A$696:$H$698,5,TRUE))) -> 2737 | K33: =IF($J$18=0,0,(VLOOKUP($J$18,Tablas!$A$696:$H$698,6,TRUE))) -> 2450 | L33: =IF($J$18=0,0,(VLOOKUP($J$18,Tablas!$A$696:$H$698,7,TRUE))) -> 2161 | M33: =IF($J$18=0,0,(VLOOKUP($J$18,Tablas!$A$696:$H$698,8,TRUE))) -> 0
A34: Ambulancia aérea | C34: 25000 | F34: Prima Rider Complic. Maternidad | I34: =+IF($I$20=FALSE,0,Tablas!D$699) -> 0 | J34: =+IF($I$20=FALSE,0,Tablas!E$699) -> 0 | K34: =+IF($I$20=FALSE,0,Tablas!F$699) -> 0 | L34: =+IF($I$20=FALSE,0,Tablas!G$699) -> 225 | M34: =+IF($I$20=FALSE,0,Tablas!H$699) -> 0
A35: Repatriación restos mortales | C35: 5000 | F35: Prima Rider Trasplante Organos | I35: =IF($I$22=FALSE,0,Tablas!D$700) -> 300 | J35: =IF($I$22=FALSE,0,Tablas!E$700) -> 300 | K35: =IF($I$22=FALSE,0,Tablas!F$700) -> 300 | L35: =IF($I$22=FALSE,0,Tablas!G$700) -> 300 | M35: =IF($I$22=FALSE,0,Tablas!H$700) -> 0
A36: Medicamentos por receta | C36: Si son médicamente prescritos tras una hospitalización o en relación con una cirugía ambulatoria entonces $7,000 por los próximos 6 meses. | F36: TOTAL PRIMA NETA : | I36: =SUM(I31:I35) -> 12183 | J36: 10754 | K36: 9655 | L36: 8778 | M36: 0
F37: Costo Administrativo Anual : | I37: 75 | J37: 75 | K37: 75 | L37: 75 | M37: 75
F38: IVA (12%) | I38: =I36*0.12 -> 1461.96 | J38: =J36*0.12 -> 1290.48 | K38: 1158.6 | L38: 1053.36 | M38: 0
F39: GRAN TOTAL : | I39: =SUM(I36:I38) -> 13719.96 | J39: =SUM(J36:J38) -> 12119.48 | K39: 10888.6 | L39: 9906.36 | M39: 75
F41: Tarifas Semestrales
C42: Medicamentos por receta ambulatoria $1,500 | F42: Prima de Titular : | I42: =VLOOKUP($M$16,Tablas!$A$705:$H$767,4,TRUE) -> 1862.42 | J42: =VLOOKUP($M$16,Tablas!$A$705:$H$767,5,TRUE) -> 1638.76 | K42: =VLOOKUP($M$16,Tablas!$A$705:$H$767,6,TRUE) -> 1465.98 | L42: =VLOOKUP($M$16,Tablas!$A$705:$H$767,7,TRUE) -> 1293.73 | M42: =VLOOKUP($M$16,Tablas!$A$705:$H$767,8,TRUE) -> 0
F43: Prima de Cónyuge | I43: =IF($J$16=1,0,(VLOOKUP($M$18,Tablas!$A$705:$H$767,4,TRUE))) -> 2786.21 | J43: =IF($J$16=1,0,(VLOOKUP($M$18,Tablas!$A$705:$H$767,5,TRUE))) -> 2451.25 | K43: =IF($J$16=1,0,(VLOOKUP($M$18,Tablas!$A$705:$H$767,6,TRUE))) -> 2193.67 | L43: =IF($J$16=1,0,(VLOOKUP($M$18,Tablas!$A$705:$H$767,7,TRUE))) -> 1935.03 | M43: =IF($J$16=1,0,(VLOOKUP($M$18,Tablas!$A$705:$H$767,8,TRUE))) -> 0
A44: Atención médica en el hogar | C44: $200 por día, hasta 60 días por año por incidente | F44: Primas Hijos : | I44: =IF($J$18=0,0,(VLOOKUP($J$18,Tablas!$A$768:$H$770,4,TRUE))) -> 1649.36 | J44: =IF($J$18=0,0,(VLOOKUP($J$18,Tablas!$A$768:$H$770,5,TRUE))) -> 1450.61 | K44: =IF($J$18=0,0,(VLOOKUP($J$18,Tablas!$A$768:$H$770,6,TRUE))) -> 1298.5 | L44: =IF($J$18=0,0,(VLOOKUP($J$18,Tablas!$A$768:$H$770,7,TRUE))) -> 1145.33 | M44: =IF($J$18=0,0,(VLOOKUP($J$18,Tablas!$A$768:$H$770,8,TRUE))) -> 0
A45: Rehabilitación | C45: 100% de UCR hasta 40 sesiones por año | F45: Prima Rider Complic. Maternidad | I45: =+IF($I$20=FALSE,0,Tablas!D$771) -> 0 | J45: =+IF($I$20=FALSE,0,Tablas!E$771) -> 0 | K45: =+IF($I$20=FALSE,0,Tablas!F$771) -> 0 | L45: =+IF($I$20=FALSE,0,Tablas!G$771) -> 119.25 | M45: =+IF($I$20=FALSE,0,Tablas!H$771) -> 0
A46: Residencia y cuidados paliativos | C46: 100% de usual/acostumbrado y razonable | F46: Prima Rider Trasplante Organos | I46: =IF($I$22=FALSE,0,Tablas!D$772) -> 159 | J46: =IF($I$22=FALSE,0,Tablas!E$772) -> 159 | K46: =IF($I$22=FALSE,0,Tablas!F$772) -> 159 | L46: =IF($I$22=FALSE,0,Tablas!G$772) -> 159 | M46: =IF($I$22=FALSE,0,Tablas!H$772) -> 0
A47: Cobertura de actividades peligrosas | C47: 100% siempre que no sea práctica profesional | F47: TOTAL PRIMA NETA : | I47: =SUM(I42:I46) -> 6456.99 | J47: 5699.62 | K47: 5117.15 | L47: 4652.34 | M47: 0
A48: Cobertura de brazos y piernas artificiales | C48: $30,000 por año y hasta $120,000 de por vida | F48: Costo Administrativo Anual : | I48: 75 | J48: 75 | K48: 75 | L48: 75 | M48: 75
A49: Cobertura extendida para dependientes en caso de muerte de asegurado principal | C49: n/a | F49: IVA (12%) | I49: =I47*0.12 -> 774.8388 | J49: =J47*0.12 -> 683.9544 | K49: 614.058 | L49: 558.2808 | M49: 0
F50: GRAN TOTAL (1ra Cuota) : | I50: =SUM(I47:I49) -> 7306.8288 | J50: =SUM(J47:J49) -> 6458.5744 | K50: 5806.208 | L50: 5285.6208 | M50: 75
F51: GRAN TOTAL (2da Cuota) : | I51: =I47+I49 -> 7231.8288 | J51: =J47+J49 -> 6383.5744 | K51: 5731.208 | L51: 5210.6208 | M51: 0
F52: Tarifas en US $ - Válidas desde 01 Ene 2014

Sheet Blue 100 (hidden)
A10: Cotización de Seguro Médico Internacional - Bupa Blue 100 Guatemala
A12: Bupa Blue 100 Guatemala | H12: =+'INGRESO DE DATOS'!$D$14 -> Nombre
A13: Cobertura Máxima anual | C13: US$100,000
A14: Cobertura Geografica | C14: Cobertura mundial | H14: =+'INGRESO DE DATOS'!$D$24 -> Agente / Agencia
A15: Condiciones médicas cubiertas | C15: Todas las condiciones médicas
A16: Redes de proveedores | C16: Red de Proveedores Alpha | J16: =+'INGRESO DE DATOS'!$G$16 -> 2 | M16: =+'INGRESO DE DATOS'!$G$18 -> 32
A17: Opciones fuera de la Red | C17: 30%/70% | F17: FECHA DE COTIZACION :
A18: Requiere preautorización | C18: Sí, 30% de penalización por omitir prenotificación | F18: =NOW() -> 2021-12-29T17:58:50.530 | J18: =+'INGRESO DE DATOS'!$J$16 -> 3 | M18: =+'INGRESO DE DATOS'!$J$18 -> 46
A20: Número máximo de días de hospitalización | C20: Ilimitado | I20: TRUE | K20: COMPLICACIONES DE MATERNIDAD
A21: Habitación y alimentación | C21: 100% dentro de Red Bupa
C22: 70% fuera de la Red Bupa | I22: TRUE | K22: TRASPLANTE DE ORGANOS
A23: Cuidados Intensivos | C23: 100% dentro de Red Bupa
C24: 70% fuera de la Red Bupa
A25: Cobertura de Maternidad | C25: $3,500 (Excepto planes 4,5, y 6) | F25: Deducibles | I25: PLAN 1 | J25: PLAN 2 | K25: PLAN 3 | L25: PLAN 4 | M25: PLAN 5
A26: Cobertura Provisional de Recién Nacido | C26: $7,500 por los primeros 90 días | F26: Dentro del pais de residencia | I26: 250 | J26: 500 | K26: 1000 | L26: 2000 | M26: 5000
A27: Cuidado del Recién Nacido saludable | C27: 2 visitas por año. $50 vacunas | F27: Fuera del pais de residencia | I27: 500 | J27: 1000 | K27: 2000 | L27: 4000 | M27: 5000
A28: Cobertura de Complicaciones de Maternidad | C28: 25000
A29: Trasplante de Organos | C29: 100000
A30: Condiciones congénitas y hereditarias | C30: <18 años $50,000 de por vida; >=18 al 100% | F30: Tarifas Anuales
A31: Coberturas opcionales (Riders) | C31: Complicaciones de Maternidad por $500,000 | F31: Prima de Titular : | I31: =VLOOKUP($M$16,Tablas!$A$778:$H$840,4,TRUE) -> 1392 | J31: =VLOOKUP($M$16,Tablas!$A$778:$H$840,5,TRUE) -> 1363 | K31: =VLOOKUP($M$16,Tablas!$A$778:$H$840,6,TRUE) -> 1285 | L31: =VLOOKUP($M$16,Tablas!$A$778:$H$840,7,TRUE) -> 1171 | M31: =VLOOKUP($M$16,Tablas!$A$778:$H$840,8,TRUE) -> 965
C32: Trasplante de órganos por $ 500,000 de por vida | F32: Prima de Cónyuge | I32: =IF($J$16=1,0,(VLOOKUP($M$18,Tablas!$A$778:$H$840,4,TRUE))) -> 2059 | J32: =IF($J$16=1,0,(VLOOKUP($M$18,Tablas!$A$778:$H$840,5,TRUE))) -> 2018 | K32: =IF($J$16=1,0,(VLOOKUP($M$18,Tablas!$A$633:$H$656,6,TRUE))) -> 3477 | L32: =IF($J$16=1,0,(VLOOKUP($M$18,Tablas!$A$778:$H$840,7,TRUE))) -> 1735 | M32: =IF($J$16=1,0,(VLOOKUP($M$18,Tablas!$A$778:$H$840,8,TRUE))) -> 1494
A33: Acompañamiento de menores hospitalizados | C33: n/a | F33: Primas Hijos : | I33: =IF($J$18=0,0,(VLOOKUP($J$18,Tablas!$A$841:$H$843,4,TRUE))) -> 1393 | J33: =IF($J$18=0,0,(VLOOKUP($J$18,Tablas!$A$841:$H$843,5,TRUE))) -> 1364 | K33: =IF($J$18=0,0,(VLOOKUP($J$18,Tablas!$A$841:$H$843,6,TRUE))) -> 1285 | L33: =IF($J$18=0,0,(VLOOKUP($J$18,Tablas!$A$841:$H$843,7,TRUE))) -> 1173 | M33: =IF($J$18=0,0,(VLOOKUP($J$18,Tablas!$A$841:$H$843,8,TRUE))) -> 597
A34: Ambulancia aérea | C34: $10,000 por año y ticket aéreo de retorno | F34: Prima Rider Complic. Maternidad | I34: =+IF($I$20=FALSE,0,Tablas!D$844) -> 225 | J34: =+IF($I$20=FALSE,0,Tablas!E$844) -> 225 | K34: =+IF($I$20=FALSE,0,Tablas!F$844) -> 225 | L34: =+IF($I$20=FALSE,0,Tablas!G$844) -> 225 | M34: =+IF($I$20=FALSE,0,Tablas!H$844) -> 225
A35: Repatriación restos mortales | C35: 5000 | F35: Prima Rider Trasplante Organos | I35: =IF($I$22=FALSE,0,Tablas!D$845) -> 300 | J35: =IF($I$22=FALSE,0,Tablas!E$845) -> 300 | K35: =IF($I$22=FALSE,0,Tablas!F$845) -> 300 | L35: =IF($I$22=FALSE,0,Tablas!G$845) -> 300 | M35: =IF($I$22=FALSE,0,Tablas!H$845) -> 300
A36: Medicamentos por receta | C36: Si son médicamente prescritos tras una hospitalización o en relación con una cirugía ambulatoria entonces $6,000 por los próximos 6 meses. | F36: TOTAL PRIMA NETA : | I36: =SUM(I31:I35) -> 5369 | J36: 5270 | K36: 6572 | L36: 4604 | M36: 3581
F37: Costo Administrativo Anual : | I37: 75 | J37: 75 | K37: 75 | L37: 75 | M37: 75
F38: IVA (12%) | I38: =I36*0.12 -> 644.28 | J38: =J36*0.12 -> 632.4 | K38: 788.64 | L38: 552.48 | M38: 429.72
F39: GRAN TOTAL : | I39: =SUM(I36:I38) -> 6088.28 | J39: =SUM(J36:J38) -> 5977.4 | K39: 7435.64 | L39: 5231.48 | M39: 4085.72
F41: Tarifas Semestrales
C42: Tratamiento Ambulatorio a US$1,500 | F42: Prima de Titular : | I42: =VLOOKUP($M$16,Tablas!$A$850:$H$912,4,TRUE) -> 737.76 | J42: =VLOOKUP($M$16,Tablas!$A$850:$H$912,5,TRUE) -> 722.39 | K42: =VLOOKUP($M$16,Tablas!$A$850:$H$912,6,TRUE) -> 681.05 | L42: =VLOOKUP($M$16,Tablas!$A$850:$H$912,7,TRUE) -> 620.63 | M42: =VLOOKUP($M$16,Tablas!$A$850:$H$912,8,TRUE) -> 511.45
F43: Prima de Cónyuge | I43: =IF($J$16=1,0,(VLOOKUP($M$18,Tablas!$A$850:$H$912,4,TRUE))) -> 1091.27 | J43: =IF($J$16=1,0,(VLOOKUP($M$18,Tablas!$A$850:$H$912,5,TRUE))) -> 1069.54 | K43: =IF($J$16=1,0,(VLOOKUP($M$18,Tablas!$A$850:$H$912,6,TRUE))) -> 1007.53 | L43: =IF($J$16=1,0,(VLOOKUP($M$18,Tablas!$A$850:$H$912,7,TRUE))) -> 919.55 | M43: =IF($J$16=1,0,(VLOOKUP($M$18,Tablas!$A$850:$H$912,8,TRUE))) -> 791.82
A44: Atención médica en el hogar | C44: $200 por día, hasta 60 días por año por incidente | F44: Primas Hijos : | I44: =IF($J$18=0,0,(VLOOKUP($J$18,Tablas!$A$913:$H$915,4,TRUE))) -> 738.29 | J44: =IF($J$18=0,0,(VLOOKUP($J$18,Tablas!$A$913:$H$915,5,TRUE))) -> 722.92 | K44: =IF($J$18=0,0,(VLOOKUP($J$18,Tablas!$A$913:$H$915,6,TRUE))) -> 681.05 | L44: =IF($J$18=0,0,(VLOOKUP($J$18,Tablas!$A$913:$H$915,7,TRUE))) -> 621.69 | M44: =IF($J$18=0,0,(VLOOKUP($J$18,Tablas!$A$913:$H$915,8,TRUE))) -> 316.41
A45: Rehabilitación | C45: 100% de UCR hasta 30 sesiones por año | F45: Prima Rider Complic. Maternidad | I45: =+IF($I$20=FALSE,0,Tablas!D$916) -> 119.25 | J45: =+IF($I$20=FALSE,0,Tablas!E$916) -> 119.25 | K45: =+IF($I$20=FALSE,0,Tablas!F$916) -> 119.25 | L45: =+IF($I$20=FALSE,0,Tablas!G$916) -> 119.25 | M45: =+IF($I$20=FALSE,0,Tablas!H$916) -> 119.25
A46: Residencia y cuidados paliativos | C46: 100% de usual/acostumbrado y razonable | F46: Prima Rider Trasplante Organos | I46: =IF($I$22=FALSE,0,Tablas!D$917) -> 159 | J46: =IF($I$22=FALSE,0,Tablas!E$917) -> 159 | K46: =IF($I$22=FALSE,0,Tablas!F$917) -> 159 | L46: =IF($I$22=FALSE,0,Tablas!G$917) -> 159 | M46: =IF($I$22=FALSE,0,Tablas!H$917) -> 159
A47: Cobertura de actividades peligrosas | C47: 100% siempre que no sea práctica profesional | F47: TOTAL PRIMA NETA : | I47: =SUM(I42:I46) -> 2845.57 | J47: 2793.1 | K47: 2647.88 | L47: 2440.12 | M47: 1897.93
A48: Cobertura de brazos y piernas artificiales | C48: $30,000 por año y hasta $120,000 de por vida | F48: Costo Administrativo Anual : | I48: 75 | J48: 75 | K48: 75 | L48: 75 | M48: 75
A49: Cobertura extendida para dependientes en caso de muerte de asegurado principal | C49: n/a | F49: IVA (12%) | I49: =I47*0.12 -> 341.4684 | J49: =J47*0.12 -> 335.172 | K49: 317.7456 | L49: 292.8144 | M49: 227.7516
F50: GRAN TOTAL (1ra Cuota) : | I50: =SUM(I47:I49) -> 3262.0384 | J50: =SUM(J47:J49) -> 3203.272 | K50: 3040.6256 | L50: 2807.9344 | M50: 2200.6816
F51: GRAN TOTAL (2da Cuota) : | I51: =I47+I49 -> 3187.0384 | J51: =J47+J49 -> 3128.272 | K51: 2965.6256 | L51: 2732.9344 | M51: 2125.6816
F52: Tarifas en US $ - Válidas desde 01 Ene 2014

Sheet Elite Care
A7: BUPA ELITE CARE | D7: Nombre del Asegurado: | E7: =+'INGRESO DE DATOS'!$D$14 -> Nombre
D9: Intermediario: | E9: =+'INGRESO DE DATOS'!$D$24 -> Agente / Agencia
D11: Fecha: | E11: =+TODAY() -> 2021-12-29 | G11: =IF('INGRESO DE DATOS'!G20>0,"Descuento","") ->  | H11: =IF('INGRESO DE DATOS'!G20>0,'INGRESO DE DATOS'!G20,"") -> 
F13: Numero de Adultos: | G13: =+'INGRESO DE DATOS'!$G$16 -> 2 | I13: Edad de Titular: | J13: =+'INGRESO DE DATOS'!$G$18 -> 32
F15: Numero de Hijos: | G15: =+'INGRESO DE DATOS'!$J$16 -> 3 | I15: Edad de Conyuge: | J15: =+'INGRESO DE DATOS'!$J$18 -> 46
F17: Coberturas Adicionales: | H17: Complicaciones de Maternidad (+ $500,000)
F18: TRUE
F19: FALSE | H19: Trasplante de Órganos (+ $500,000)
F20: FALSE
H21: Deducible cero
D23: Deducibles | F23: PLAN 1 | G23: PLAN 2 | H23: PLAN 3 | I23: PLAN 4 | J23: PLAN 5
D24: Dentro del pais de residencia | F24: 250 | G24: 1000 | H24: 2000 | I24: 5000 | J24: 10000
D25: Fuera del pais de residencia | F25: 1000 | G25: 2000 | H25: 3000 | I25: 5000 | J25: 10000
D27: Tarifas Anuales
D28: Prima Titular | F28: =VLOOKUP($J$13,Tablas!$A$487:$H$549,4,TRUE) -> 7348 | G28: =VLOOKUP($J$13,Tablas!$A$487:$H$549,5,TRUE) -> 4621 | H28: =VLOOKUP($J$13,Tablas!$A$487:$H$549,6,TRUE) -> 3686 | I28: =VLOOKUP($J$13,Tablas!$A$487:$H$549,7,TRUE) -> 3068 | J28: =VLOOKUP($J$13,Tablas!$A$487:$H$549,8,TRUE) -> 2246
D29: Prima Cónyuge | F29: =IF($G$13=1,0,(VLOOKUP($J$15,Tablas!$A$487:$H$549,4,TRUE))) -> 11151 | G29: =IF($G$13=1,0,(VLOOKUP($J$15,Tablas!$A$487:$H$549,5,TRUE))) -> 6917 | H29: =IF($G$13=1,0,(VLOOKUP($J$15,Tablas!$A$487:$H$549,6,TRUE))) -> 5568 | I29: =IF($G$13=1,0,(VLOOKUP($J$15,Tablas!$A$487:$H$549,7,TRUE))) -> 4455 | J29: =IF($G$13=1,0,(VLOOKUP($J$15,Tablas!$A$487:$H$549,8,TRUE))) -> 3387
D30: Primas Hijos | F30: =IF($G$15=0,0,(VLOOKUP($G$15,Tablas!$A$550:$H$552,4,TRUE))) -> 5338 | G30: =IF($G$15=0,0,(VLOOKUP($G$15,Tablas!$A$550:$H$552,5,TRUE))) -> 3927 | H30: =IF($G$15=0,0,(VLOOKUP($G$15,Tablas!$A$550:$H$552,6,TRUE))) -> 2776 | I30: =IF($G$15=0,0,(VLOOKUP($G$15,Tablas!$A$550:$H$552,7,TRUE))) -> 2287 | J30: =IF($G$15=0,0,(VLOOKUP($G$15,Tablas!$A$550:$H$552,8,TRUE))) -> 1992
D31: Anexo: Complicaciones de Maternidad | F31: =+IF($F$18=FALSE,0,Tablas!D$553) -> 0 | G31: =+IF($F$18=FALSE,0,Tablas!E$553) -> 0 | H31: =+IF($F$18=FALSE,0,Tablas!F$553) -> 0 | I31: =+IF($F$18=FALSE,0,Tablas!G$553) -> 225 | J31: =+IF($F$18=FALSE,0,Tablas!H$553) -> 225
D32: Anexo: Trasplante Organos | F32: =IF($F$19=FALSE,0,Tablas!D$554) -> 0 | G32: =IF($F$19=FALSE,0,Tablas!E$554) -> 0 | H32: =IF($F$19=FALSE,0,Tablas!F$554) -> 0 | I32: =IF($F$19=FALSE,0,Tablas!G$554) -> 0 | J32: =IF($F$19=FALSE,0,Tablas!H$554) -> 0
D33: Anexo: Deducible cero | F33: =IF($F$20=FALSE,0,Tablas!$D$555) -> 0 | G33: =IF($F$20=FALSE,0,Tablas!$E$555) -> 0 | H33: =IF($F$20=FALSE,0,Tablas!$F$555) -> 0 | I33: =IF($F$20=FALSE,0,Tablas!$G$555) -> 0 | J33: =IF($F$20=FALSE,0,Tablas!$H$555) -> 0
D34: PRIMA NETA | F34: =SUM(F28:F33) -> 23837 | G34: =SUM(G28:G33) -> 15465 | H34: 12030 | I34: 10035 | J34: 7850
D35: =IF('INGRESO DE DATOS'!G20>0,"Descuento","") ->  | F35: =IF('INGRESO DE DATOS'!$G$20>0,-(F28+F29+F30)*'INGRESO DE DATOS'!$G$20,0) -> 0 | G35: =IF('INGRESO DE DATOS'!$G$20>0,-(G28+G29+G30)*'INGRESO DE DATOS'!$G$20,0) -> 0 | H35: =IF('INGRESO DE DATOS'!$G$20>0,-(H28+H29+H30)*'INGRESO DE DATOS'!$G$20,0) -> 0 | I35: =IF('INGRESO DE DATOS'!$G$20>0,-(I28+I29+I30)*'INGRESO DE DATOS'!$G$20,0) -> 0 | J35: =IF('INGRESO DE DATOS'!$G$20>0,-(J28+J29+J30)*'INGRESO DE DATOS'!$G$20,0) -> 0
D36: Costo Administrativo Anual | F36: 75 | G36: 75 | H36: 75 | I36: 75 | J36: 75
D37: IVA (12%) | F37: =+(F34+F35+F36)*0% -> 0 | G37: =+(G34+G35+G36)*0% -> 0 | H37: 0 | I37: 0 | J37: 0
D38: TOTAL | F38: =SUM(F34:F37) -> 23912 | G38: =SUM(G34:G37) -> 15540 | H38: =SUM(H34:H37) -> 12105 | I38: =SUM(I34:I37) -> 10110 | J38: =SUM(J34:J37) -> 7925
D40: Tarifas Semestrales
D41: Prima Titular | F41: =VLOOKUP($J$13,Tablas!$A$559:$H$621,4,TRUE) -> 3894.44 | G41: =VLOOKUP($J$13,Tablas!$A$559:$H$621,5,TRUE) -> 2449.13 | H41: =VLOOKUP($J$13,Tablas!$A$559:$H$621,6,TRUE) -> 1953.58 | I41: =VLOOKUP($J$13,Tablas!$A$559:$H$621,7,TRUE) -> 1626.04 | J41: =VLOOKUP($J$13,Tablas!$A$559:$H$621,8,TRUE) -> 1190.38
D42: Prima Cónyuge | F42: =IF($G$13=1,0,(VLOOKUP($J$15,Tablas!$A$559:$H$621,4,TRUE))) -> 5910.03 | G42: =IF($G$13=1,0,(VLOOKUP($J$15,Tablas!$A$559:$H$621,5,TRUE))) -> 3666.01 | H42: =IF($G$13=1,0,(VLOOKUP($J$15,Tablas!$A$559:$H$621,6,TRUE))) -> 2951.04 | I42: =IF($G$13=1,0,(VLOOKUP($J$15,Tablas!$A$559:$H$621,7,TRUE))) -> 2361.15 | J42: =IF($G$13=1,0,(VLOOKUP($J$15,Tablas!$A$559:$H$621,8,TRUE))) -> 1795.11
D43: Primas Hijos | F43: =IF($G$15=0,0,(VLOOKUP($G$15,Tablas!$A$622:$H$624,4,TRUE))) -> 2829.14 | G43: =IF($G$15=0,0,(VLOOKUP($G$15,Tablas!$A$622:$H$624,5,TRUE))) -> 2081.31 | H43: =IF($G$15=0,0,(VLOOKUP($G$15,Tablas!$A$622:$H$624,6,TRUE))) -> 1471.28 | I43: =IF($G$15=0,0,(VLOOKUP($G$15,Tablas!$A$622:$H$624,7,TRUE))) -> 1212.11 | J43: =IF($G$15=0,0,(VLOOKUP($G$15,Tablas!$A$622:$H$624,8,TRUE))) -> 1055.76
D44: Anexo: Complicaciones de Maternidad | F44: =+IF($F$18=FALSE,0,Tablas!D$625) -> 0 | G44: =+IF($F$18=FALSE,0,Tablas!E$625) -> 0 | H44: =+IF($F$18=FALSE,0,Tablas!F$625) -> 0 | I44: =+IF($F$18=FALSE,0,Tablas!G$625) -> 119.25 | J44: =+IF($F$18=FALSE,0,Tablas!H$625) -> 119.25
D45: Anexo: Trasplante Organos | F45: =IF($F$19=FALSE,0,Tablas!D$626) -> 0 | G45: =IF($F$19=FALSE,0,Tablas!E$626) -> 0 | H45: =IF($F$19=FALSE,0,Tablas!F$626) -> 0 | I45: =IF($F$19=FALSE,0,Tablas!G$626) -> 0 | J45: =IF($F$19=FALSE,0,Tablas!H$626) -> 0
D46: Anexo: Deducible cero | F46: =IF($F$20=FALSE,0,Tablas!D627) -> 0 | G46: =IF($F$20=FALSE,0,Tablas!E627) -> 0 | H46: =IF($F$20=FALSE,0,Tablas!F627) -> 0 | I46: =IF($F$20=FALSE,0,Tablas!G627) -> 0 | J46: =IF($F$20=FALSE,0,Tablas!H627) -> 0
D47: PRIMA NETA | F47: =SUM(F41:F46) -> 12633.61 | G47: =SUM(G41:G46) -> 8196.45 | H47: 6375.9 | I47: 5318.55 | J47: 4160.5
D48: =IF('INGRESO DE DATOS'!G20>0,"Descuento","") ->  | F48: =IF('INGRESO DE DATOS'!$G$20>0,-(F41+F42+F43)*'INGRESO DE DATOS'!$G$20,0) -> 0 | G48: =IF('INGRESO DE DATOS'!$G$20>0,-(G41+G42+G43)*'INGRESO DE DATOS'!$G$20,0) -> 0 | H48: =IF('INGRESO DE DATOS'!$G$20>0,-(H41+H42+H43)*'INGRESO DE DATOS'!$G$20,0) -> 0 | I48: =IF('INGRESO DE DATOS'!$G$20>0,-(I41+I42+I43)*'INGRESO DE DATOS'!$G$20,0) -> 0 | J48: =IF('INGRESO DE DATOS'!$G$20>0,-(J41+J42+J43)*'INGRESO DE DATOS'!$G$20,0) -> 0
D49: Costo Administrativo Anual | F49: 75 | G49: 75 | H49: 75 | I49: 75 | J49: 75
D50: IVA (12%) | F50: =+(F47+F48+F49)*0% -> 0 | G50: =+(G47+G48+G49)*0% -> 0 | H50: 0 | I50: 0 | J50: 0
D51: 1ra Cuota | F51: =SUM(F47:F50) -> 12708.61 | G51: =SUM(G47:G50) -> 8271.45 | H51: =SUM(H47:H50) -> 6450.9 | I51: =SUM(I47:I50) -> 5393.55 | J51: =SUM(J47:J50) -> 4235.5
D52: 2da Cuota | F52: =F47+F48+F50 -> 12633.61 | G52: =G47+G48+G50 -> 8196.45 | H52: 6375.9 | I52: 5318.55 | J52: 4160.5
D53: TOTAL | F53: =F51+F52 -> 25342.22 | G53: =G51+G52 -> 16467.9 | H53: 12826.8 | I53: 10712.1 | J53: 8396
D55: Tarifas Trimestrales
D56: Prima Titular | F56: =VLOOKUP($J$13,Tablas!$A$1065:$H$1127,4,TRUE) -> 2020.7 | G56: =VLOOKUP($J$13,Tablas!$A$1065:$H$1127,5,TRUE) -> 1270.775 | H56: =VLOOKUP($J$13,Tablas!$A$1065:$H$1127,6,TRUE) -> 1013.65 | I56: =VLOOKUP($J$13,Tablas!$A$1065:$H$1127,7,TRUE) -> 843.7 | J56: =VLOOKUP($J$13,Tablas!$A$1065:$H$1127,8,TRUE) -> 617.65
D57: Prima Cónyuge | F57: =IF($G$13=1,0,(VLOOKUP($J$15,Tablas!$A$1065:$H$1127,4,TRUE))) -> 3066.525 | G57: =IF($G$13=1,0,(VLOOKUP($J$15,Tablas!$A$1065:$H$1127,5,TRUE))) -> 1902.175 | H57: =IF($G$13=1,0,(VLOOKUP($J$15,Tablas!$A$1065:$H$1127,6,TRUE))) -> 1531.2 | I57: =IF($G$13=1,0,(VLOOKUP($J$15,Tablas!$A$1065:$H$1127,7,TRUE))) -> 1225.125 | J57: =IF($G$13=1,0,(VLOOKUP($J$15,Tablas!$A$1065:$H$1127,8,TRUE))) -> 931.425
D58: Primas Hijos | F58: =IF($G$15=0,0,(VLOOKUP($G$15,Tablas!$A$1128:$H$1130,4,TRUE))) -> 1467.95 | G58: =IF($G$15=0,0,(VLOOKUP($G$15,Tablas!$A$1128:$H$1130,5,TRUE))) -> 1079.925 | H58: =IF($G$15=0,0,(VLOOKUP($G$15,Tablas!$A$1128:$H$1130,6,TRUE))) -> 763.4 | I58: =IF($G$15=0,0,(VLOOKUP($G$15,Tablas!$A$1128:$H$1130,7,TRUE))) -> 628.925 | J58: =IF($G$15=0,0,(VLOOKUP($G$15,Tablas!$A$1128:$H$1130,8,TRUE))) -> 547.8
D59: Anexo: Complicaciones de Maternidad | F59: =+IF($F$18=FALSE,0,Tablas!D$1131) -> 0 | G59: =+IF($F$18=FALSE,0,Tablas!E$1131) -> 0 | H59: =+IF($F$18=FALSE,0,Tablas!F$1131) -> 0 | I59: =+IF($F$18=FALSE,0,Tablas!G$1131) -> 61.875 | J59: =+IF($F$18=FALSE,0,Tablas!H$1131) -> 61.875
D60: Anexo: Trasplante Organos | F60: =IF($F$19=FALSE,0,Tablas!D$1132) -> 0 | G60: =IF($F$19=FALSE,0,Tablas!E$1132) -> 0 | H60: =IF($F$19=FALSE,0,Tablas!F$1132) -> 0 | I60: =IF($F$19=FALSE,0,Tablas!G$1132) -> 0 | J60: =IF($F$19=FALSE,0,Tablas!H$1132) -> 0
D61: Anexo: Deducible cero | F61: =IF($F$20=FALSE,0,Tablas!D1133) -> 0 | G61: =IF($F$20=FALSE,0,Tablas!E1133) -> 0 | H61: =IF($F$20=FALSE,0,Tablas!F1133) -> 0 | I61: =IF($F$20=FALSE,0,Tablas!G1133) -> 0 | J61: =IF($F$20=FALSE,0,Tablas!H1133) -> 0
D62: PRIMA NETA | F62: =SUM(F56:F61) -> 6555.175 | G62: =SUM(G56:G61) -> 4252.875 | H62: 3308.25 | I62: 2759.625 | J62: 2158.75
D63: =IF('INGRESO DE DATOS'!G34>0,"Descuento","") ->  | F63: =IF('INGRESO DE DATOS'!$G$20>0,-(F56+F57+F58)*'INGRESO DE DATOS'!$G$20,0) -> 0 | G63: =IF('INGRESO DE DATOS'!$G$20>0,-(G56+G57+G58)*'INGRESO DE DATOS'!$G$20,0) -> 0 | H63: =IF('INGRESO DE DATOS'!$G$20>0,-(H56+H57+H58)*'INGRESO DE DATOS'!$G$20,0) -> 0 | I63: =IF('INGRESO DE DATOS'!$G$20>0,-(I56+I57+I58)*'INGRESO DE DATOS'!$G$20,0) -> 0 | J63: =IF('INGRESO DE DATOS'!$G$20>0,-(J56+J57+J58)*'INGRESO DE DATOS'!$G$20,0) -> 0
D64: Costo Administrativo Anual | F64: 75 | G64: 75 | H64: 75 | I64: 75 | J64: 75
D65: IVA (12%) | F65: =+(F62+F63+F64)*0% -> 0 | G65: =+(G62+G63+G64)*0% -> 0 | H65: 0 | I65: 0 | J65: 0
D66: 1ra Cuota | F66: =SUM(F62:F65) -> 6630.175 | G66: =SUM(G62:G65) -> 4327.875 | H66: =SUM(H62:H65) -> 3383.25 | I66: =SUM(I62:I65) -> 2834.625 | J66: =SUM(J62:J65) -> 2233.75
D67: 2da a 4ta Cuota | F67: =F62+F63+F65 -> 6555.175 | G67: =G62+G63+G65 -> 4252.875 | H67: 3308.25 | I67: 2759.625 | J67: 2158.75
D68: TOTAL | F68: =F66+F67*3 -> 26295.7 | G68: =G66+G67*3 -> 17086.5 | H68: 13308 | I68: 11113.5 | J68: 8710
D70: Tarifas Mensuales
D71: Prima Titular | F71: =VLOOKUP($J$13,Tablas!$A$1398:$H$1466,4,TRUE) -> 685.8133309 | G71: =VLOOKUP($J$13,Tablas!$A$1398:$H$1466,5,TRUE) -> 431.2933318 | H71: =VLOOKUP($J$13,Tablas!$A$1398:$H$1466,6,TRUE) -> 344.0266654 | I71: =VLOOKUP($J$13,Tablas!$A$1398:$H$1466,7,TRUE) -> 286.3466656 | J71: =VLOOKUP($J$13,Tablas!$A$1398:$H$1466,8,TRUE) -> 209.6266659
D72: Prima Cónyuge | F72: =IF($G$13=1,0,(VLOOKUP($J$15,Tablas!$A$1398:$H$1466,4,TRUE))) -> 1040.759996 | G72: =IF($G$13=1,0,(VLOOKUP($J$15,Tablas!$A$1398:$H$1466,5,TRUE))) -> 645.5866644 | H72: =IF($G$13=1,0,(VLOOKUP($J$15,Tablas!$A$1398:$H$1466,6,TRUE))) -> 519.6799981 | I72: =IF($G$13=1,0,(VLOOKUP($J$15,Tablas!$A$1398:$H$1466,7,TRUE))) -> 415.7999985 | J72: =IF($G$13=1,0,(VLOOKUP($J$15,Tablas!$A$1398:$H$1466,8,TRUE))) -> 316.1199989
D73: Primas Hijos | F73: =IF($G$15=0,0,(VLOOKUP($G$15,Tablas!$A$1461:$H$1463,4,TRUE))) -> 498.2133316 | G73: =IF($G$15=0,0,(VLOOKUP($G$15,Tablas!$A$1461:$H$1463,5,TRUE))) -> 366.5199987 | H73: =IF($G$15=0,0,(VLOOKUP($G$15,Tablas!$A$1461:$H$1463,6,TRUE))) -> 259.0933324 | I73: =IF($G$15=0,0,(VLOOKUP($G$15,Tablas!$A$1461:$H$1463,7,TRUE))) -> 213.4533326 | J73: =IF($G$15=0,0,(VLOOKUP($G$15,Tablas!$A$1461:$H$1463,8,TRUE))) -> 185.9199993
D74: Anexo: Complicaciones de Maternidad | F74: =+IF($F$18=FALSE,0,Tablas!D1464) -> 0 | G74: =+IF($F$18=FALSE,0,Tablas!E1464) -> 0 | H74: =+IF($F$18=FALSE,0,Tablas!F1464) -> 0 | I74: =+IF($F$18=FALSE,0,Tablas!G1464) -> 20.99999993 | J74: =+IF($F$18=FALSE,0,Tablas!H1464) -> 20.99999993
D75: Anexo: Trasplante Organos | F75: =IF($F$19=FALSE,0,Tablas!D1465) -> 0 | G75: =IF($F$19=FALSE,0,Tablas!E1465) -> 0 | H75: =IF($F$19=FALSE,0,Tablas!F1465) -> 0 | I75: =IF($F$19=FALSE,0,Tablas!G1465) -> 0 | J75: =IF($F$19=FALSE,0,Tablas!H1465) -> 0
D76: Anexo: Deducible cero | F76: =IF($F$20=FALSE,0,Tablas!D1466) -> 0 | G76: =IF($F$20=FALSE,0,Tablas!E1466) -> 0 | H76: =IF($F$20=FALSE,0,Tablas!F1466) -> 0 | I76: =IF($F$20=FALSE,0,Tablas!G1466) -> 0 | J76: =IF($F$20=FALSE,0,Tablas!H1466) -> 0
D77: PRIMA NETA | F77: =SUM(F71:F76) -> 2224.786659 | G77: =SUM(G71:G76) -> 1443.399995 | H77: 1122.799996 | I77: 936.5999967 | J77: 732.6666641
F78: 0 | G78: 0 | H78: 0 | I78: 0 | J78: 0
D79: Costo Administrativo Anual | F79: 75 | G79: 75 | H79: 75 | I79: 75 | J79: 75
D80: IVA (12%) | F80: =+(F77+F78+F79)*0% -> 0 | G80: =+(G77+G78+G79)*0% -> 0 | H80: 0 | I80: 0 | J80: 0
D81: 1ra Cuota | F81: =SUM(F77:F80) -> 2299.786659 | G81: =SUM(G77:G80) -> 1518.399995 | H81: =SUM(H77:H80) -> 1197.799996 | I81: =SUM(I77:I80) -> 1011.599997 | J81: =SUM(J77:J80) -> 807.6666641
D82: 2da a 12va Cuota | F82: =F77+F78+F80 -> 2224.786659 | G82: =G77+G78+G80 -> 1443.399995 | H82: 1122.799996 | I82: 936.5999967 | J82: 732.6666641
D83: TOTAL | F83: =F81+F82*11 -> 26772.4399 | G83: =G81+G82*11 -> 17395.79994 | H83: 13548.59995 | I83: 11314.19996 | J83: 8866.999969
D85: Tarifas en US $ - Efectivas partir del 1ro de enero de 2022
D86: Este presupuesto solamente tiene carácter informativo y en ningún momento expresa compromiso legal para suministrarle cobertura de seguro. La emisión de una póliza de seguro Bupa está sujeta a todas las evaluaciones de riesgo por parte de Bupa y a la recepción de todos los pagos de prima requeridos.

Sheet Resumen tarifas anuales
A1: Cotización de Seguro Médico Internacional - BUPA Guatemala
C7: Nombre del Asegurado: | D7: =+'INGRESO DE DATOS'!$D$14 -> Nombre
C9: Intermediario: | D9: =+'INGRESO DE DATOS'!$D$24 -> Agente / Agencia
C11: Fecha: | D11: =+TODAY() -> 2021-12-29 | F11: =IF('INGRESO DE DATOS'!G20>0,"Descuento","") ->  | G11: =IF('INGRESO DE DATOS'!G20>0,'INGRESO DE DATOS'!G20,"") -> 
E13: Numero de Adultos: | F13: =+'INGRESO DE DATOS'!$G$16 -> 2 | H13: Edad de Titular: | I13: =+'INGRESO DE DATOS'!$G$18 -> 32
E15: Numero de Hijos: | F15: =+'INGRESO DE DATOS'!$J$16 -> 3 | H15: Edad de Conyuge: | I15: =+'INGRESO DE DATOS'!$J$18 -> 46
C20: ESSENTIAL CARE
C21: Deducibles
E22: PLAN 1 | F22: PLAN 2 | G22: PLAN 3 | H22: PLAN 4
C23: Dentro del pais de residencia | E23: 0 | F23: 0 | G23: 500 | H23: 2000
C24: Fuera del pais de residencia | E24: 1000 | F24: 2000 | G24: 3000 | H24: 5000
C27: Tarifas Anuales
C28: ESSENTIAL CARE | E28: 17428 | F28: 12063 | G28: 8830 | H28: 6503
C31: Tarifas Semestrales
C32: ESSENTIAL CARE | D32: 1ra Cuota | E32: 9272.09 | F32: 6428.64 | G32: 4715.15 | H32: 3481.84
D33: 2da Cuota | E33: 9188.09 | F33: 6344.64 | G33: 4631.15 | H33: 3397.84
C35: Tarifas Trimestrales
C36: ESSENTIAL CARE | D36: 1ra Cuota | E36: 4847.075 | F36: 3849.06 | G36: 2857.22 | H36: 2165.53
D37: 2da a 4ta Cuota | E37: 4763.075 | F37: 3765.06 | G37: 2773.22 | H37: 2081.53
C39: Tarifas Mensual
C40: ESSENTIAL CARE | D40: 1ra Cuota | E40: 1694.55549 | F40: 1193.84004 | G40: 892.10415 | H40: 674.92524
D41: 2da a 12va Cuota | E41: 1610.55549 | F41: 1109.84004 | G41: 808.10415 | H41: 590.92524
C44: UNIQUE CARE
C45: Deducibles
E46: PLAN 1 | F46: PLAN 2 | G46: PLAN 3 | H46: PLAN 4 | I46: PLAN 5
C47: Dentro del pais de residencia | E47: 250 | F47: 1000 | G47: 2000 | H47: 5000 | I47: 10000
C48: Fuera del pais de residencia | E48: 1000 | F48: 2000 | G48: 3000 | H48: 5000 | I48: 10000
C51: Tarifas Anuales
C52: UNIQUE CARE | E52: 10993 | F52: 8520 | G52: 7029 | H52: 6415 | I52: 6150
C55: Tarifas Semestrales
C56: UNIQUE CARE | D56: 1ra Cuota | E56: 5861.54 | F56: 4550.85 | G56: 3760.62 | H56: 3435.2 | I56: 3294.75
D57: 2da Cuota | E57: 5777.54 | F57: 4466.85 | G57: 3676.62 | H57: 3351.2 | I57: 3210.75
C59: Tarifas Trimestrales
C60: UNIQUE CARE | D60: 1ra Cuota | E60: 3077.45 | F60: 2397.375 | G60: 1987.35 | H60: 1818.5 | I60: 1745.625
D61: 2da a 4ta Cuota | E61: 2993.45 | F61: 2313.375 | G61: 1903.35 | H61: 1734.5 | I61: 1661.625
C63: Tarifas Mensuales
C64: UNIQUE CARE | D64: 1ra Cuota | E64: 1222.05429 | F64: 1021.22475 | G64: 960.18782 | H64: 1003.71005 | I64: 1115.2301
D65: 2da a 12va Cuota | E65: 1138.05429 | F65: 937.22475 | G65: 876.18782 | H65: 919.71005 | I65: 1031.2301
C68: UNIQUE CARE - DEDUCIBLE CERO
C69: Deducibles
E70: PLAN 1 | F70: PLAN 2 | G70: PLAN 3 | H70: PLAN 4
C71: Dentro del pais de residencia | E71: 0 | F71: 0 | G71: 0 | H71: 0
C72: Fuera del pais de residencia | E72: 1000 | F72: 2000 | G72: 3000 | H72: 5000
C75: Tarifas Anuales
C76: UNIQUE CARE - DEDUCIBLE CERO | E76: 9400 | F76: 7165 | G76: 5702 | H76: 5042
C79: Tarifas Semestrales
C80: UNIQUE CARE -DEDUCIBLE CERO | D80: 1ra Cuota | E80: 5017.25 | F80: 3832.7 | G80: 3057.31 | H80: 2707.51
D81: 2da Cuota | E81: 4933.25 | F81: 3748.7 | G81: 2973.31 | H81: 2623.51
C83: Tarifas Trimestrales
C84: UNIQUE CARE -DEDUCIBLE CERO | D84: 1ra Cuota | E84: 2715.875 | F84: 2101.25 | G84: 1698.925 | H84: 1517.425
D85: 2da a 4ta Cuota | E85: 2631.875 | F85: 2017.25 | G85: 1614.925 | H85: 1433.425
C87: Tarifas Mensuales
C88: UNIQUE CARE -DEDUCIBLE CERO | D88: 1ra Cuota | E88: 1117.179 | F88: 908.58645 | G88: 772.04466 | H88: 710.44686
D89: 2da a 4ta Cuota | E89: 1033.179 | F89: 824.58645 | G89: 688.04466 | H89: 626.44686
C92: ELITE CARE
C93: Deducibles
E94: PLAN 1 | F94: PLAN 2 | G94: PLAN 3 | H94: PLAN 4 | I94: PLAN 5
C95: Dentro del pais de residencia | E95: 1000 | F95: 2000 | G95: 5000 | H95: 10000 | I95: 20000
C96: Fuera del pais de residencia | E96: 2000 | F96: 3000 | G96: 5000 | H96: 10000 | I96: 20000
C99: Tarifas Anuales
C100: ELITE CARE | E100: 6940 | F100: 5260 | G100: 3798 | H100: 3001 | I100: 2290
C103: Tarifas Semestrales
C104: ELITE CARE | D104: 1ra Cuota | E104: 3713.45 | F104: 2823.05 | G104: 2048.19 | H104: 1625.78 | I104: 1248.95
D105: 2da Cuota | E105: 3629.45 | F105: 2739.05 | G105: 1964.19 | H105: 1541.78 | I105: 1164.95
C107: Tarifas Trimestrales
C108: ELITE CARE | D108: 1ra Cuota | E108: 1962.875 | F108: 1500.875 | G108: 1098.825 | H108: 879.65 | I108: 684.125
D109: 2da a 4ta Cuota | E109: 1878.875 | F109: 1416.875 | G109: 1014.825 | H109: 795.65 | I109: 600.125
C111: Tarifas Mensuales
C112: ELITE CARE | D112: 1ra Cuota | E112: 811.0872 | F112: 654.2928 | G112: 517.84434 | H112: 443.46033 | I112: 377.1027
D113: 2da a 4ta Cuota | E113: 727.0872 | F113: 570.2928 | G113: 433.84434 | H113: 359.46033 | I113: 293.1027
C115: Tarifas en US $ - Efectivas a partir del 1ro de enero de 2021
C116: Este presupuesto solamente tiene carácter informativo y en ningún momento expresa compromiso legal para suministrarle cobertura de seguro. La emisión de una póliza de seguro Bupa está sujeta a todas las evaluaciones de riesgo por parte de Bupa y a la recepción de todos los pagos de prima requeridos.

Sheet Tablas (hidden)
A2: BUPA ESSENTIAL CARE | J2: FACTOR SEMESTRAL : | L2: 0.53 | N2: 0.53
A3: TARIFAS ANUALES | J3: FACTOR TRIMESTRAL : | L3: 0.275 | N3: 0.275
A4: EDAD | J4: FACTOR MENSUAL: | L4: 0.093333333 | N4: 0.093333333
D5: DW2 | E5: DW3 | F5: DW4 | G5: DW5
A6: 18 | B6: - 24 | D6: 1494 | E6: 1357 | F6: 1232 | G6: 1062 | J6: Descuento (15%) | L6: 1
A7: 25 | B7: - 29 | D7: 1681 | E7: 1527 | F7: 1387 | G7: 1195
A8: 30 | B8: - 34 | D8: 1884 | E8: 1711 | F8: 1555 | G8: 1341
A9: 35 | B9: - 39 | D9: 2151 | E9: 1953 | F9: 1775 | G9: 1530
A10: 40 | B10: - 44 | D10: 2494 | E10: 2264 | F10: 2057 | G10: 1774
A11: 45 | B11: - 49 | D11: 2981 | E11: 2707 | F11: 2460 | G11: 2120
A12: 50 | B12: - 54 | D12: 3557 | E12: 3230 | F12: 2935 | G12: 2529
A13: 55 | B13: - 59 | D13: 4234 | E13: 3844 | F13: 3493 | G13: 3011
A14: 60 | D14: 4697 | E14: 4265 | F14: 3875 | G14: 3340
A15: 61 | D15: 4892 | E15: 4442 | F15: 4036 | G15: 3479
A16: 62 | D16: 5127 | E16: 4655 | F16: 4230 | G16: 3646
A17: 63 | D17: 5382 | E17: 4888 | F17: 4441 | G17: 3828
A18: 64 | D18: 5690 | E18: 5167 | F18: 4694 | G18: 4046
A19: 65 | D19: 6115 | E19: 5552 | F19: 5044 | G19: 4348
A20: 66 | D20: 6606 | E20: 5998 | F20: 5450 | G20: 4697
A21: 67 | D21: 7130 | E21: 6474 | F21: 5883 | G21: 5070
A22: 68 | D22: 7728 | E22: 7016 | F22: 6375 | G22: 5495
A23: 69 | D23: 8434 | E23: 7658 | F23: 6958 | G23: 5997
A24: 70 | D24: 9308 | E24: 8451 | F24: 7679 | G24: 6618
A25: 71 | D25: 10331 | E25: 9381 | F25: 8523 | G25: 7346
A26: 72 | D26: 11428 | E26: 10376 | F26: 9428 | G26: 8126
A27: 73 | D27: 12679 | E27: 11512 | F27: 10460 | G27: 9015
A28: 74 | D28: 14130 | E28: 12830 | F28: 11657 | G28: 10048
A29: 75 | B29: o más | D29: 15832 | E29: 14374 | F29: 13061 | G29: 11257
A30: 1 | B30: Hijo | D30: 528 | E30: 479 | F30: 435 | G30: 375
A31: 2 | B31: Hijos | D31: 814 | E31: 739 | F31: 672 | G31: 579
A32: 3 | B32: Hijos o más | D32: 1182 | E32: 1074 | F32: 976 | G32: 841
A33: 1 | B33: Rider Comp. Maternidad | D33: 0 | E33: 0 | F33: 225 | G33: 225
A34: 1 | B34: Transplante de organos | C34: 0 | D34: 0 | E34: 0 | F34: 0 | G34: 0
A36: TARIFAS SEMESTRALES
A37: EDAD
C38: DW1 | D38: DW2 | E38: DW3 | F38: DW4 | G38: DW5 | H38: DW6
A39: 18 | B39: - 24 | C39: =C6*$L$2 -> 0 | D39: =D6*$L$2 -> 791.82 | E39: 719.21 | F39: 652.96 | G39: 562.86 | H39: 0
A40: 25 | B40: - 29 | C40: =C7*$L$2 -> 0 | D40: 890.93 | E40: 809.31 | F40: 735.11 | G40: 633.35 | H40: 0
A41: 30 | B41: - 34 | C41: =C8*$L$2 -> 0 | D41: 998.52 | E41: 906.83 | F41: 824.15 | G41: 710.73 | H41: 0
A42: 35 | B42: - 39 | C42: =C9*$L$2 -> 0 | D42: 1140.03 | E42: 1035.09 | F42: 940.75 | G42: 810.9 | H42: 0
A43: 40 | B43: - 44 | C43: =C10*$L$2 -> 0 | D43: 1321.82 | E43: 1199.92 | F43: 1090.21 | G43: 940.22 | H43: 0
A44: 45 | B44: - 49 | C44: =C11*$L$2 -> 0 | D44: 1579.93 | E44: 1434.71 | F44: 1303.8 | G44: 1123.6 | H44: 0
A45: 50 | B45: - 54 | C45: =C12*$L$2 -> 0 | D45: 1885.21 | E45: 1711.9 | F45: 1555.55 | G45: 1340.37 | H45: 0
A46: 55 | B46: - 59 | C46: =C13*$L$2 -> 0 | D46: 2244.02 | E46: 2037.32 | F46: 1851.29 | G46: 1595.83 | H46: 0
A47: 60 | C47: =C14*$L$2 -> 0 | D47: 2489.41 | E47: 2260.45 | F47: 2053.75 | G47: 1770.2 | H47: 0
A48: 61 | C48: =C15*$L$2 -> 0 | D48: 2592.76 | E48: 2354.26 | F48: 2139.08 | G48: 1843.87 | H48: 0
A49: 62 | C49: =C16*$L$2 -> 0 | D49: 2717.31 | E49: 2467.15 | F49: 2241.9 | G49: 1932.38 | H49: 0
A50: 63 | C50: =C17*$L$2 -> 0 | D50: 2852.46 | E50: 2590.64 | F50: 2353.73 | G50: 2028.84 | H50: 0
A51: 64 | C51: =C18*$L$2 -> 0 | D51: 3015.7 | E51: 2738.51 | F51: 2487.82 | G51: 2144.38 | H51: 0
A52: 65 | C52: =C19*$L$2 -> 0 | D52: 3240.95 | E52: 2942.56 | F52: 2673.32 | G52: 2304.44 | H52: 0
A53: 66 | C53: =C20*$L$2 -> 0 | D53: 3501.18 | E53: 3178.94 | F53: 2888.5 | G53: 2489.41 | H53: 0
A54: 67 | C54: =C21*$L$2 -> 0 | D54: 3778.9 | E54: 3431.22 | F54: 3117.99 | G54: 2687.1 | H54: 0
A55: 68 | C55: =C22*$L$2 -> 0 | D55: 4095.84 | E55: 3718.48 | F55: 3378.75 | G55: 2912.35 | H55: 0
A56: 69 | C56: =C23*$L$2 -> 0 | D56: 4470.02 | E56: 4058.74 | F56: 3687.74 | G56: 3178.41 | H56: 0
A57: 70 | C57: =C24*$L$2 -> 0 | D57: 4933.24 | E57: 4479.03 | F57: 4069.87 | G57: 3507.54 | H57: 0
A58: 71 | C58: =C25*$L$2 -> 0 | D58: 5475.43 | E58: 4971.93 | F58: 4517.19 | G58: 3893.38 | H58: 0
A59: 72 | C59: =C26*$L$2 -> 0 | D59: 6056.84 | E59: 5499.28 | F59: 4996.84 | G59: 4306.78 | H59: 0
A60: 73 | C60: =C27*$L$2 -> 0 | D60: 6719.87 | E60: 6101.36 | F60: 5543.8 | G60: 4777.95 | H60: 0
A61: 74 | C61: =C28*$L$2 -> 0 | D61: 7488.9 | E61: 6799.9 | F61: 6178.21 | G61: 5325.44 | H61: 0
A62: 75 | B62: o más | C62: =C29*$L$2 -> 0 | D62: 8390.96 | E62: 7618.22 | F62: 6922.33 | G62: 5966.21 | H62: 0
A63: 1 | B63: Hijo | C63: =C30*$L$2 -> 0 | D63: 279.84 | E63: 253.87 | F63: 230.55 | G63: 198.75 | H63: 0
A64: 2 | B64: Hijos | C64: =C31*$L$2 -> 0 | D64: 431.42 | E64: 391.67 | F64: 356.16 | G64: 306.87 | H64: 0
A65: 3 | B65: Hijos o más | C65: =C32*$L$2 -> 0 | D65: 626.46 | E65: 569.22 | F65: 517.28 | G65: 445.73 | H65: 0
A66: 1 | B66: Rider Comp. Maternidad | C66: =+C33*$L$2 -> 0 | D66: 0 | E66: 0 | F66: 119.25 | G66: 119.25 | H66: 0
A67: 1 | B67: Transplante de organos | C67: 0 | D67: 0 | E67: 0 | F67: 0 | G67: 0 | H67: 0
A69: DIAMOND (LATINAMERICA ONLY)
A70: TARIFAS ANUALES
A71: EDAD
C72: DL1 | D72: DL2 | E72: DL3 | F72: DL4 | G72: DL5 | H72: DL6
A73: 18 | B73: - 24 | C73: 4794 | D73: 2952 | E73: 1949 | F73: 1401 | G73: 993 | H73: 779
A74: 25 | B74: - 29 | C74: 5028 | D74: 3097 | E74: 2156 | F74: 1553 | G74: 1103 | H74: 867
A75: 30 | B75: - 34 | C75: 5200 | D75: 3223 | E75: 2312 | F75: 1743 | G75: 1322 | H75: 1041
A76: 35 | B76: - 39 | C76: 5816 | D76: 3609 | E76: 2590 | F76: 1951 | G76: 1483 | H76: 1168
A77: 40 | B77: - 44 | C77: 6733 | D77: 4186 | E77: 2831 | F77: 2168 | G77: 1630 | H77: 1284
A78: 45 | B78: - 49 | C78: 7517 | D78: 4680 | E78: 3168 | F78: 2425 | G78: 1824 | H78: 1436
A79: 50 | B79: - 54 | C79: 9772 | D79: 5991 | E79: 4158 | F79: 3164 | G79: 2578 | H79: 2033
A80: 55 | B80: - 59 | C80: 10394 | D80: 6374 | E80: 4426 | F80: 3365 | G80: 2744 | H80: 2164
A81: 60 | C81: 11056 | D81: 6945 | E81: 4828 | F81: 3871 | G81: 3307 | H81: 2688
A82: 61 | C82: 11876 | D82: 7463 | E82: 5187 | F82: 4159 | G82: 3555 | H82: 2886
A83: 62 | C83: 12994 | D83: 8172 | E83: 5684 | F83: 4557 | G83: 3892 | H83: 3162
A84: 63 | C84: 13812 | D84: 8687 | E84: 6042 | F84: 4844 | G84: 4139 | H84: 3362
A85: 64 | C85: 14936 | D85: 9396 | E85: 6539 | F85: 5242 | G85: 4475 | H85: 3639
A86: 65 | C86: 15651 | D86: 12288 | E86: 8530 | F86: 6629 | G86: 5974 | H86: 5139
A87: 66 | C87: 16363 | D87: 14275 | E87: 9911 | F87: 7703 | G87: 6942 | H87: 5968
A88: 67 | C88: 17867 | D88: 15595 | E88: 10826 | F88: 8416 | G88: 7581 | H88: 6521
A89: 68 | C89: 19780 | D89: 17268 | E89: 11986 | F89: 9320 | G89: 8398 | H89: 7220
A90: 69 | C90: 21758 | D90: 18999 | E90: 13190 | F90: 10254 | G90: 9240 | H90: 7945
A91: 70 | C91: 25748 | D91: 23384 | E91: 16061 | F91: 12071 | G91: 10768 | H91: 9345
A92: 71 | C92: 26759 | D92: 24303 | E92: 16691 | F92: 12545 | G92: 11190 | H92: 9716
A93: 72 | C93: 27512 | D93: 24990 | E93: 17164 | F93: 12900 | G93: 11507 | H93: 9987
A94: 73 | C94: 28525 | D94: 25911 | E94: 17793 | F94: 13375 | G94: 11931 | H94: 10356
A95: 74 | C95: 29026 | D95: 26368 | E95: 18111 | F95: 13609 | G95: 12143 | H95: 10540
A96: 75 | B96: o más | C96: 30287 | D96: 27515 | E96: 18898 | F96: 14204 | G96: 12670 | H96: 11001
A97: 1 | B97: Hijo | C97: 1660 | D97: 1027 | E97: 758 | F97: 629 | G97: 527 | H97: 413
A98: 2 | B98: Hijos | C98: 2608 | D98: 1634 | E98: 1204 | F98: 999 | G98: 841 | H98: 656
A99: 3 | B99: Hijos o más | C99: 3798 | D99: 2395 | E99: 1766 | F99: 1465 | G99: 1234 | H99: 961
A100: 1 | B100: Rider Comp. Maternidad | C100: 0 | D100: 0 | E100: 0 | F100: 225 | G100: 225 | H100: 225
A101: 1 | B101: Transplante de organos | C101: 0 | D101: 0 | E101: 0 | F101: 0 | G101: 0 | H101: 0
A103: TARIFAS SEMESTRALES
A104: EDAD
C105: DL1 | D105: DL2 | E105: DL3 | F105: DL4 | G105: DL5 | H105: DL6
A106: 18 | B106: - 24 | C106: =+C73*$L$2 -> 2540.82 | D106: 1564.56 | E106: 1032.97 | F106: 742.53 | G106: 526.29 | H106: 412.87
A107: 25 | B107: - 29 | C107: 2664.84 | D107: 1641.41 | E107: 1142.68 | F107: 823.09 | G107: 584.59 | H107: 459.51
A108: 30 | B108: - 34 | C108: 2756 | D108: 1708.19 | E108: 1225.36 | F108: 923.79 | G108: 700.66 | H108: 551.73
A109: 35 | B109: - 39 | C109: 3082.48 | D109: 1912.77 | E109: 1372.7 | F109: 1034.03 | G109: 785.99 | H109: 619.04
A110: 40 | B110: - 44 | C110: 3568.49 | D110: 2218.58 | E110: 1500.43 | F110: 1149.04 | G110: 863.9 | H110: 680.52
A111: 45 | B111: - 49 | C111: 3984.01 | D111: 2480.4 | E111: 1679.04 | F111: 1285.25 | G111: 966.72 | H111: 761.08
A112: 50 | B112: - 54 | C112: 5179.16 | D112: 3175.23 | E112: 2203.74 | F112: 1676.92 | G112: 1366.34 | H112: 1077.49
A113: 55 | B113: - 59 | C113: 5508.82 | D113: 3378.22 | E113: 2345.78 | F113: 1783.45 | G113: 1454.32 | H113: 1146.92
A114: 60 | C114: 5859.68 | D114: 3680.85 | E114: 2558.84 | F114: 2051.63 | G114: 1752.71 | H114: 1424.64
A115: 61 | C115: 6294.28 | D115: 3955.39 | E115: 2749.11 | F115: 2204.27 | G115: 1884.15 | H115: 1529.58
A116: 62 | C116: =+C83*$L$2 -> 6886.82 | D116: 4331.16 | E116: 3012.52 | F116: 2415.21 | G116: 2062.76 | H116: 1675.86
A117: 63 | C117: 7320.36 | D117: 4604.11 | E117: 3202.26 | F117: 2567.32 | G117: 2193.67 | H117: 1781.86
A118: 64 | C118: 7916.08 | D118: 4979.88 | E118: 3465.67 | F118: 2778.26 | G118: 2371.75 | H118: 1928.67
A119: 65 | C119: 8295.03 | D119: 6512.64 | E119: 4520.9 | F119: 3513.37 | G119: 3166.22 | H119: 2723.67
A120: 66 | C120: 8672.39 | D120: 7565.75 | E120: 5252.83 | F120: 4082.59 | G120: 3679.26 | H120: 3163.04
A121: 67 | C121: 9469.51 | D121: 8265.35 | E121: 5737.78 | F121: 4460.48 | G121: 4017.93 | H121: 3456.13
A122: 68 | C122: 10483.4 | D122: 9152.04 | E122: 6352.58 | F122: 4939.6 | G122: 4450.94 | H122: 3826.6
A123: 69 | C123: 11531.74 | D123: 10069.47 | E123: 6990.7 | F123: 5434.62 | G123: 4897.2 | H123: 4210.85
A124: 70 | C124: 13646.44 | D124: 12393.52 | E124: 8512.33 | F124: 6397.63 | G124: 5707.04 | H124: 4952.85
A125: 71 | C125: 14182.27 | D125: 12880.59 | E125: 8846.23 | F125: 6648.85 | G125: 5930.7 | H125: 5149.48
A126: 72 | C126: =+C93*$L$2 -> 14581.36 | D126: 13244.7 | E126: 9096.92 | F126: 6837 | G126: 6098.71 | H126: 5293.11
A127: 73 | C127: 15118.25 | D127: 13732.83 | E127: 9430.29 | F127: 7088.75 | G127: 6323.43 | H127: 5488.68
A128: 74 | C128: 15383.78 | D128: 13975.04 | E128: 9598.83 | F128: 7212.77 | G128: 6435.79 | H128: 5586.2
A129: 75 | B129: o más | C129: 16052.11 | D129: 14582.95 | E129: 10015.94 | F129: 7528.12 | G129: 6715.1 | H129: 5830.53
A130: 1 | B130: Hijo | C130: 879.8 | D130: 544.31 | E130: 401.74 | F130: 333.37 | G130: 279.31 | H130: 218.89
A131: 2 | B131: Hijos | C131: 1382.24 | D131: 866.02 | E131: 638.12 | F131: 529.47 | G131: 445.73 | H131: 347.68
A132: 3 | B132: Hijos o más | C132: 2012.94 | D132: 1269.35 | E132: 935.98 | F132: 776.45 | G132: 654.02 | H132: 509.33
A133: 1 | B133: Rider Comp. Maternidad | C133: 0 | D133: 0 | E133: 0 | F133: 119.25 | G133: 119.25 | H133: 119.25
A134: 1 | B134: Transplante de organos | C134: 0 | D134: 0 | E134: 0 | F134: 0 | G134: 0 | H134: 0
A136: xx
A137: TARIFAS ANUALES
A138: EDAD
C139: CW1 | D139: CW2 | E139: CW3 | F139: CW4 | G139: CW5 | H139: CW6
A140: 18 | B140: - 24 | D140: 3551 | E140: 2780 | F140: 2126 | G140: 1854 | H140: 1389
A141: 25 | B141: - 29 | D141: 3900 | E141: 3127 | F141: 2393 | G141: 2047 | H141: 1545
A142: 30 | B142: - 34 | D142: 4479 | E142: 3668 | F142: 2780 | G142: 2393 | H142: 1816
A143: 35 | B143: - 39 | D143: 4943 | E143: 4131 | F143: 3090 | G143: 2664 | H143: 2006
A144: 40 | B144: - 44 | D144: 5520 | E144: 4711 | F144: 3477 | G144: 3012 | H144: 2279
A145: 45 | B145: - 49 | D145: 6371 | E145: 5520 | F145: 4054 | G145: 3514 | H145: 2626
A146: 50 | B146: - 54 | D146: 6951 | E146: 6062 | F146: 4441 | G146: 3823 | H146: 2896
A147: 55 | B147: - 59 | D147: 8184 | E147: 7256 | F147: 5251 | G147: 4556 | H147: 3399
A148: 60 | D148: 8571 | E148: 7760 | F148: 5560 | G148: 4827 | H148: 3591
A149: 61 | D149: 9652 | E149: 8725 | F149: 6294 | G149: 5406 | H149: 4054
A150: 62 | D150: 10731 | E150: 9690 | F150: 6989 | G150: 6024 | H150: 4517
A151: 63 | D151: 11776 | E151: 10655 | F151: 7683 | G151: 6641 | H151: 4980
A152: 64 | D152: 12855 | E152: 11658 | F152: 8377 | G152: 7256 | H152: 5444
A153: 65 | D153: 12894 | E153: 11735 | F153: 8455 | G153: 7298 | H153: 5444
A154: 66 | D154: 12894 | E154: 11852 | F154: 8493 | G154: 7335 | H154: 5444
A155: 67 | D155: 14321 | E155: 13202 | F155: 9420 | G155: 8145 | H155: 6062
A156: 68 | D156: 15749 | E156: 14514 | F156: 10384 | G156: 8957 | H156: 6681
A157: 69 | D157: 16483 | E157: 15172 | F157: 10849 | G157: 9381 | H157: 6989
A158: 70 | D158: 16522 | E158: 15404 | F158: 10965 | G158: 9457 | H158: 7026
A159: 71 | D159: 18570 | E159: 17373 | F159: 12353 | G159: 10655 | H159: 7916
A160: 72 | D160: 20653 | E160: 19303 | F160: 13703 | G160: 11813 | H160: 8801
A161: 73 | D161: 22739 | E161: 21231 | F161: 15095 | G161: 13009 | H161: 9690
A162: 74 | D162: 24784 | E162: 23162 | F162: 16483 | G162: 14205 | H162: 10579
A163: 75 | B163: o más | D163: 27023 | E163: 25402 | F163: 18027 | G163: 15519 | H163: 11544
A164: 1 | B164: Hijo | D164: 1698 | E164: 1005 | F164: 850 | G164: 734 | H164: 542
A165: 2 | B165: Hijos | D165: 2896 | E165: 1508 | F165: 1352 | G165: 1159 | H165: 850
A166: 3 | B166: Hijos o más | D166: 4246 | E166: 2163 | F166: 1969 | G166: 1698 | H166: 1275
A167: 1 | B167: Rider Comp. Maternidad | C167: 0 | D167: 225 | E167: 225 | F167: 225 | G167: 225 | H167: 225
A168: 1 | B168: Transplante de organos | C168: 0 | D168: 0 | E168: 0 | F168: 0 | G168: 0 | H168: 0
A170: TARIFAS SEMESTRALES
A171: EDAD
C172: CW1 | D172: CW2 | E172: CW3 | F172: CW4 | G172: CW5 | H172: CW6
A173: 18 | B173: - 24 | C173: =C140*$L$2 -> 0 | D173: =D140*$L$2 -> 1882.03 | E173: 1473.4 | F173: 1126.78 | G173: 982.62 | H173: 736.17
A174: 25 | B174: - 29 | C174: =C141*$L$2 -> 0 | D174: 2067 | E174: 1657.31 | F174: 1268.29 | G174: 1084.91 | H174: 818.85
A175: 30 | B175: - 34 | C175: =C142*$L$2 -> 0 | D175: 2373.87 | E175: 1944.04 | F175: 1473.4 | G175: 1268.29 | H175: 962.48
A176: 35 | B176: - 39 | C176: =C143*$L$2 -> 0 | D176: 2619.79 | E176: 2189.43 | F176: 1637.7 | G176: 1411.92 | H176: 1063.18
A177: 40 | B177: - 44 | C177: =C144*$L$2 -> 0 | D177: 2925.6 | E177: 2496.83 | F177: 1842.81 | G177: 1596.36 | H177: 1207.87
A178: 45 | B178: - 49 | C178: =C145*$L$2 -> 0 | D178: 3376.63 | E178: 2925.6 | F178: 2148.62 | G178: 1862.42 | H178: 1391.78
A179: 50 | B179: - 54 | C179: =C146*$L$2 -> 0 | D179: 3684.03 | E179: 3212.86 | F179: 2353.73 | G179: 2026.19 | H179: 1534.88
A180: 55 | B180: - 59 | C180: =C147*$L$2 -> 0 | D180: 4337.52 | E180: 3845.68 | F180: 2783.03 | G180: 2414.68 | H180: 1801.47
A181: 60 | C181: =C148*$L$2 -> 0 | D181: 4542.63 | E181: 4112.8 | F181: 2946.8 | G181: 2558.31 | H181: 1903.23
A182: 61 | C182: =C149*$L$2 -> 0 | D182: 5115.56 | E182: 4624.25 | F182: 3335.82 | G182: 2865.18 | H182: 2148.62
A183: 62 | C183: =C150*$L$2 -> 0 | D183: 5687.43 | E183: 5135.7 | F183: 3704.17 | G183: 3192.72 | H183: 2394.01
A184: 63 | C184: =C151*$L$2 -> 0 | D184: 6241.28 | E184: 5647.15 | F184: 4071.99 | G184: 3519.73 | H184: 2639.4
A185: 64 | C185: =C152*$L$2 -> 0 | D185: 6813.15 | E185: 6178.74 | F185: 4439.81 | G185: 3845.68 | H185: 2885.32
A186: 65 | C186: =C153*$L$2 -> 0 | D186: 6833.82 | E186: 6219.55 | F186: 4481.15 | G186: 3867.94 | H186: 2885.32
A187: 66 | C187: =C154*$L$2 -> 0 | D187: 6833.82 | E187: 6281.56 | F187: 4501.29 | G187: 3887.55 | H187: 2885.32
A188: 67 | C188: =C155*$L$2 -> 0 | D188: 7590.13 | E188: 6997.06 | F188: 4992.6 | G188: 4316.85 | H188: 3212.86
A189: 68 | C189: =C156*$L$2 -> 0 | D189: 8346.97 | E189: 7692.42 | F189: 5503.52 | G189: 4747.21 | H189: 3540.93
A190: 69 | C190: =C157*$L$2 -> 0 | D190: 8735.99 | E190: 8041.16 | F190: 5749.97 | G190: 4971.93 | H190: 3704.17
A191: 70 | C191: =C158*$L$2 -> 0 | D191: 8756.66 | E191: 8164.12 | F191: 5811.45 | G191: 5012.21 | H191: 3723.78
A192: 71 | C192: =C159*$L$2 -> 0 | D192: 9842.1 | E192: 9207.69 | F192: 6547.09 | G192: 5647.15 | H192: 4195.48
A193: 72 | C193: =C160*$L$2 -> 0 | D193: 10946.09 | E193: 10230.59 | F193: 7262.59 | G193: 6260.89 | H193: 4664.53
A194: 73 | C194: =C161*$L$2 -> 0 | D194: 12051.67 | E194: 11252.43 | F194: 8000.35 | G194: 6894.77 | H194: 5135.7
A195: 74 | C195: =C162*$L$2 -> 0 | D195: 13135.52 | E195: 12275.86 | F195: 8735.99 | G195: 7528.65 | H195: 5606.87
A196: 75 | B196: o más | C196: =C163*$L$2 -> 0 | D196: 14322.19 | E196: 13463.06 | F196: 9554.31 | G196: 8225.07 | H196: 6118.32
A197: 1 | B197: Hijo | C197: =C164*$L$2 -> 0 | D197: 899.94 | E197: 532.65 | F197: 450.5 | G197: 389.02 | H197: 287.26
A198: 2 | B198: Hijos | C198: =C165*$L$2 -> 0 | D198: 1534.88 | E198: 799.24 | F198: 716.56 | G198: 614.27 | H198: 450.5
A199: 3 | B199: Hijos o más | C199: =C166*$L$2 -> 0 | D199: 2250.38 | E199: 1146.39 | F199: 1043.57 | G199: 899.94 | H199: 675.75
A200: 1 | B200: Rider Comp. Maternidad | C200: =+C167*$L$2 -> 0 | D200: 119.25 | E200: 119.25 | F200: 119.25 | G200: 119.25 | H200: 119.25
A201: 1 | B201: Transplante de organos | C201: 0 | D201: 0 | E201: 0 | F201: 0 | G201: 0 | H201: 0
A203: COMPLETE (LATINAMERICA ONLY)
A204: TARIFAS ANUALES
A205: EDAD
C206: CL1 | D206: CL2 | E206: CL3 | F206: CL4 | G206: CL5 | H206: CL6
A207: 18 | B207: - 24 | C207: 4108 | D207: 2493 | E207: 1711 | F207: 1222 | G207: 864 | H207: 656
... 1237 more rows
